﻿Body Name,Supp ID,,Supplier Name,Service Area Category ,Supp Grp,Period,Invoice Date,TT,Unique Invoice Reference ,,Inv Amount,Account,Expenditure Description,Cost C,Cost Centre Name,Posted Amount
Nottinghamshire Fire and Rescue Service ,103874,Reflect Recruitment Group Limited,Reflect Recruitment Group Limited,Management & Support Services,5,202406,28/08/2023,P6,9108029,-880.69 ,880.69 ,1005,Admin Agency Staff,2058,HR Support,733.91 
Nottinghamshire Fire and Rescue Service ,104292,Macildowie Associates Ltd,Macildowie Associates Ltd,Management & Support Services,5,202406,03/09/2023,P6,9108030,-963.90 ,963.90 ,1005,Admin Agency Staff,2058,HR Support,803.25 
Nottinghamshire Fire and Rescue Service ,104292,Macildowie Associates Ltd,Macildowie Associates Ltd,Management & Support Services,5,202406,10/09/2023,P6,9108072,"-1,499.40 ","1,499.40 ",1005,Admin Agency Staff,2058,HR Support,"1,249.50 "
Nottinghamshire Fire and Rescue Service ,101001,Express Recruitment Ltd,Express Recruitment Ltd,Operational Responses,1,202406,13/09/2023,P6,9108092,"-1,658.53 ","1,658.53 ",1005,Admin Agency Staff,2005,Fire Control,718.17 
Nottinghamshire Fire and Rescue Service ,101001,Express Recruitment Ltd,Express Recruitment Ltd,Management & Support Services,1,202406,13/09/2023,P6,9108092,"-1,658.53 ","1,658.53 ",1005,Admin Agency Staff,2075,Service Support Hub,663.94 
Nottinghamshire Fire and Rescue Service ,101001,Express Recruitment Ltd,Express Recruitment Ltd,Operational Responses,1,202406,06/09/2023,P6,9108103,"-1,004.22 ","1,004.22 ",1005,Admin Agency Staff,2005,Fire Control,291.15 
Nottinghamshire Fire and Rescue Service ,101001,Express Recruitment Ltd,Express Recruitment Ltd,Management & Support Services,1,202406,06/09/2023,P6,9108103,"-1,004.22 ","1,004.22 ",1005,Admin Agency Staff,2075,Service Support Hub,545.70 
Nottinghamshire Fire and Rescue Service ,104292,Macildowie Associates Ltd,Macildowie Associates Ltd,Management & Support Services,5,202406,17/09/2023,P6,9108136,"-1,499.40 ","1,499.40 ",1005,Admin Agency Staff,2058,HR Support,"1,249.50 "
Nottinghamshire Fire and Rescue Service ,103371,Nottinghamshire Healthcare NHS Trust,Nottinghamshire Healthcare NHS Trust,Management & Support Services,5,202406,25/07/2023,P6,9108139,"-2,637.06 ","2,637.06 ",1005,Admin Agency Staff,2068,Prevention,"2,637.06 "
Nottinghamshire Fire and Rescue Service ,101001,Express Recruitment Ltd,Express Recruitment Ltd,Operational Responses,1,202406,30/08/2023,P6,9108205,"-1,669.44 ","1,669.44 ",1005,Admin Agency Staff,2005,Fire Control,718.17 
Nottinghamshire Fire and Rescue Service ,101001,Express Recruitment Ltd,Express Recruitment Ltd,Management & Support Services,1,202406,30/08/2023,P6,9108205,"-1,669.44 ","1,669.44 ",1005,Admin Agency Staff,2075,Service Support Hub,673.03 
Nottinghamshire Fire and Rescue Service ,101001,Express Recruitment Ltd,Express Recruitment Ltd,Operational Responses,1,202406,20/09/2023,P6,9108224,"-1,516.64 ","1,516.64 ",1005,Admin Agency Staff,2005,Fire Control,718.17 
Nottinghamshire Fire and Rescue Service ,101001,Express Recruitment Ltd,Express Recruitment Ltd,Management & Support Services,1,202406,20/09/2023,P6,9108224,"-1,516.64 ","1,516.64 ",1005,Admin Agency Staff,2075,Service Support Hub,545.70 
Nottinghamshire Fire and Rescue Service ,101001,Express Recruitment Ltd,Express Recruitment Ltd,Management & Support Services,1,202406,20/09/2023,P6,9108231,-818.56 ,818.56 ,1005,Admin Agency Staff,2075,Service Support Hub,682.13 
Nottinghamshire Fire and Rescue Service ,103874,Reflect Recruitment Group Limited,Reflect Recruitment Group Limited,Management & Support Services,5,202406,18/09/2023,P6,9108252,-730.79 ,730.79 ,1005,Admin Agency Staff,2058,HR Support,608.99 
Nottinghamshire Fire and Rescue Service ,103874,Reflect Recruitment Group Limited,Reflect Recruitment Group Limited,Management & Support Services,5,202406,11/09/2023,P6,9108256,-924.41 ,924.41 ,1005,Admin Agency Staff,2058,HR Support,770.34 
Nottinghamshire Fire and Rescue Service ,103874,Reflect Recruitment Group Limited,Reflect Recruitment Group Limited,Management & Support Services,5,202406,25/09/2023,P6,9108323,-924.41 ,924.41 ,1005,Admin Agency Staff,2058,HR Support,770.34 
Nottinghamshire Fire and Rescue Service ,103371,Nottinghamshire Healthcare NHS Trust,Nottinghamshire Healthcare NHS Trust,Management & Support Services,5,202406,22/09/2023,P6,9108338,"-1,676.58 ","1,676.58 ",1005,Admin Agency Staff,2068,Prevention,"1,676.58 "
Nottinghamshire Fire and Rescue Service ,101001,Express Recruitment Ltd,Express Recruitment Ltd,Management & Support Services,1,202406,23/08/2023,P6,9108339,-807.64 ,807.64 ,1005,Admin Agency Staff,2070,Strategic Support,673.03 
Nottinghamshire Fire and Rescue Service ,104292,Macildowie Associates Ltd,Macildowie Associates Ltd,Management & Support Services,5,202406,24/09/2023,P6,9108354,"-1,435.14 ","1,435.14 ",1005,Admin Agency Staff,2058,HR Support,"1,195.95 "
Nottinghamshire Fire and Rescue Service ,101001,Express Recruitment Ltd,Express Recruitment Ltd,Management & Support Services,1,202406,06/09/2023,P6,9108357,"-4,415.86 ","4,415.86 ",1005,Admin Agency Staff,2096,ICT Service Transformation,"3,679.88 "
Nottinghamshire Fire and Rescue Service ,101990,Nottinghamshire Deaf Society,Nottinghamshire Deaf Society,Management & Support Services,1,202406,31/07/2023,P6,9107952,-420.00 ,420.00 ,1801,Training,2054,Equalities Team,350.00 
Nottinghamshire Fire and Rescue Service ,103616,Police and Crime Commissioner for South Yorkshire,Police and Crime Commissioner for South Yorkshire,Prevention and Education ,5,202406,14/08/2023,P6,9107963,"-1,000.00 ","1,000.00 ",1801,Training,2026,Fire Investigation,"1,000.00 "
Nottinghamshire Fire and Rescue Service ,104134,Xact Consultancy & Training Limited,Xact Consultancy & Training Limited,"Statutory Inspection, Certification & Enforcement",5,202406,04/09/2023,P6,9108003,"-1,692.00 ","1,692.00 ",1801,Training,2021,Fire Protection,"1,410.00 "
Nottinghamshire Fire and Rescue Service ,599999,Sundry Account Interview Expenses,Redacted Personal data,Prevention and Education ,2,202406,04/07/2023,P6,9108057,"-1,194.00 ","1,194.00 ",1801,Training,2026,Fire Investigation,995.00 
Nottinghamshire Fire and Rescue Service ,100178,Skills For Justice,Skills For Justice,Management & Support Services,1,202406,31/08/2023,P6,9108065,"-1,675.00 ","1,675.00 ",1801,Training,2059,Corporate Training,"1,675.00 "
Nottinghamshire Fire and Rescue Service ,104302,GTS MedOH (the parent company is Geotech Systems Limited,GTS MedOH (the parent company is Geotech Systems Limited,Management & Support Services,5,202406,11/09/2023,P6,9108100,-478.80 ,478.80 ,1801,Training,2061,Occupational Health & Fitness,399.00 
Nottinghamshire Fire and Rescue Service ,104168,ioda Limited,ioda Limited,Management & Support Services,5,202406,15/09/2023,P6,9108101,"-1,188.00 ","1,188.00 ",1801,Training,2054,Equalities Team,990.00 
Nottinghamshire Fire and Rescue Service ,103960,(Vanessa Boon trading as) Energise - people development & diversity,(Vanessa Boon trading as) Energise - people development & diversity,Management & Support Services,5,202406,18/09/2023,P6,9108131,-800.00 ,800.00 ,1801,Training,2054,Equalities Team,800.00 
Nottinghamshire Fire and Rescue Service ,103378,R3 Safety & Rescue Limited,R3 Safety & Rescue Limited,Management & Support Services,5,202406,19/09/2023,P6,9108137,"-1,302.00 ","1,302.00 ",1801,Training,2059,Corporate Training,"1,085.00 "
Nottinghamshire Fire and Rescue Service ,103371,Nottinghamshire Healthcare NHS Trust,Nottinghamshire Healthcare NHS Trust,Management & Support Services,5,202406,23/08/2023,P6,9108138,"-2,637.03 ","2,637.03 ",1801,Training,2068,Prevention,"2,637.03 "
Nottinghamshire Fire and Rescue Service ,103371,Nottinghamshire Healthcare NHS Trust,Nottinghamshire Healthcare NHS Trust,Management & Support Services,5,202406,23/06/2023,P6,9108140,"-2,952.02 ","2,952.02 ",1801,Training,2068,Prevention,"2,952.02 "
Nottinghamshire Fire and Rescue Service ,103371,Nottinghamshire Healthcare NHS Trust,Nottinghamshire Healthcare NHS Trust,Management & Support Services,5,202406,25/05/2023,P6,9108141,"-2,577.97 ","2,577.97 ",1801,Training,2068,Prevention,"2,577.97 "
Nottinghamshire Fire and Rescue Service ,102123,The Institution Of Fire Engineers,The Institution Of Fire Engineers,Management & Support Services,1,202406,07/09/2023,P6,9108253,"-1,085.00 ","1,085.00 ",1801,Training,2059,Corporate Training,"1,079.17 "
Nottinghamshire Fire and Rescue Service ,103197,Legal Experience Training Limited,Legal Experience Training Limited,Prevention and Education ,5,202406,25/09/2023,P6,9108261,-252.00 ,252.00 ,1801,Training,2026,Fire Investigation,210.00 
Nottinghamshire Fire and Rescue Service ,100236,Asian Fire Service Association,Asian Fire Service Association,Management & Support Services,1,202406,31/08/2023,P6,9108263,-400.00 ,400.00 ,1801,Training,2051,Corporate Communications,400.00 
Nottinghamshire Fire and Rescue Service ,104134,Xact Consultancy & Training Limited,Xact Consultancy & Training Limited,"Statutory Inspection, Certification & Enforcement",5,202406,25/09/2023,P6,9108275,"-1,014.00 ","1,014.00 ",1801,Training,2021,Fire Protection,845.00 
Nottinghamshire Fire and Rescue Service ,100778,Fire Service College Ltd,Fire Service College Ltd,Operational Responses,4,202406,04/09/2023,P6,9108324,"-1,140.00 ","1,140.00 ",1801,Training,2074,Operational Training,950.00 
Nottinghamshire Fire and Rescue Service ,100778,Fire Service College Ltd,Fire Service College Ltd,Operational Responses,4,202406,04/09/2023,P6,9108325,"-5,862.00 ","5,862.00 ",1801,Training,2074,Operational Training,"4,885.00 "
Nottinghamshire Fire and Rescue Service ,100778,Fire Service College Ltd,Fire Service College Ltd,Operational Responses,4,202406,04/09/2023,P6,9108326,"-5,862.00 ","5,862.00 ",1801,Training,2074,Operational Training,"4,885.00 "
Nottinghamshire Fire and Rescue Service ,102697,Canal & River Trust,Canal & River Trust,Management & Support Services,1,202406,20/09/2023,P6,9108349,-258.15 ,258.15 ,1801,Training,2059,Corporate Training,258.15 
Nottinghamshire Fire and Rescue Service ,100778,Fire Service College Ltd,Fire Service College Ltd,Operational Responses,4,202406,18/09/2023,P6,9108350,"-11,868.00 ","11,868.00 ",1801,Training,2074,Operational Training,"9,890.00 "
Nottinghamshire Fire and Rescue Service ,100778,Fire Service College Ltd,Fire Service College Ltd,Operational Responses,4,202406,04/09/2023,P6,9108351,"-1,140.00 ","1,140.00 ",1801,Training,2074,Operational Training,950.00 
Nottinghamshire Fire and Rescue Service ,104134,Xact Consultancy & Training Limited,Xact Consultancy & Training Limited,"Statutory Inspection, Certification & Enforcement",5,202406,25/09/2023,P6,9108356,"-1,164.00 ","1,164.00 ",1801,Training,2021,Fire Protection,970.00 
Nottinghamshire Fire and Rescue Service ,599999,Sundry Account Interview Expenses,Redacted Personal Data ,Management & Support Services,2,202406,18/08/2023,P6,9107937,"-1,620.00 ","1,620.00 ",1803,Bursaries,2059,Corporate Training,"1,350.00 "
Nottinghamshire Fire and Rescue Service ,101000,C F S Messing Account Stockhill,C F S Messing Account Stockhill,Operational Responses,8,202406,31/08/2023,P6,9108124,-306.00 ,306.00 ,1814,Spoilt Meal Reimbursement,1020,Stockhill,306.00 
Nottinghamshire Fire and Rescue Service ,104292,Macildowie Associates Ltd,Macildowie Associates Ltd,Management & Support Services,5,202406,13/08/2023,P6,9107938,-942.48 ,942.48 ,1850,Recruitment Advertising,2049,Professional Support,785.40 
Nottinghamshire Fire and Rescue Service ,104292,Macildowie Associates Ltd,Macildowie Associates Ltd,Management & Support Services,5,202406,20/08/2023,P6,9107940,"-1,585.08 ","1,585.08 ",1850,Recruitment Advertising,2049,Professional Support,"1,320.90 "
Nottinghamshire Fire and Rescue Service ,104292,Macildowie Associates Ltd,Macildowie Associates Ltd,Management & Support Services,5,202406,27/08/2023,P6,9107942,"-1,370.88 ","1,370.88 ",1850,Recruitment Advertising,2049,Professional Support,"1,142.40 "
Nottinghamshire Fire and Rescue Service ,104303,CONFETTI CONSTELLATIONS LIMITED,CONFETTI CONSTELLATIONS LIMITED,Management & Support Services,5,202406,19/09/2023,P6,9108208,"-2,399.83 ","2,399.83 ",1850,Recruitment Advertising,2049,Professional Support,"1,999.86 "
Nottinghamshire Fire and Rescue Service ,102457,97.5 Kemet Fm,97.5 Kemet Fm,Management & Support Services,1,202406,31/08/2023,P6,9108276,-670.00 ,670.00 ,1850,Recruitment Advertising,2054,Equalities Team,670.00 
Nottinghamshire Fire and Rescue Service ,100167,Karimia Ltd (T/A Radio Dawn),Karimia Ltd (T/A Radio Dawn),Management & Support Services,1,202406,13/09/2023,P6,9108277,-300.00 ,300.00 ,1850,Recruitment Advertising,2054,Equalities Team,300.00 
Nottinghamshire Fire and Rescue Service ,103377,Flat Fee Recruiter Limited,Flat Fee Recruiter Limited,Management & Support Services,5,202406,04/09/2023,P6,9108311,-322.80 ,322.80 ,1850,Recruitment Advertising,2049,Professional Support,269.00 
Nottinghamshire Fire and Rescue Service ,103377,Flat Fee Recruiter Limited,Flat Fee Recruiter Limited,Management & Support Services,5,202406,18/09/2023,P6,9108312,-322.80 ,322.80 ,1850,Recruitment Advertising,2049,Professional Support,269.00 
Nottinghamshire Fire and Rescue Service ,103923,Bupa UK Insurance Services,Bupa UK Insurance Services,Management & Support Services,5,202406,30/08/2023,P6,9107995,"-3,290.80 ","3,290.80 ",1860,Employee Benefits Schemes,2049,Professional Support,"3,290.80 "
Nottinghamshire Fire and Rescue Service ,102280,Amptron Electrical Services,Amptron Electrical Services,Operational Responses,1,202406,31/08/2023,P6,9108026,"-47,318.91 ","47,318.91 ",2000,Buildings Repairs and Maintenance - Reactive,1001,Mansfield,"11,003.63 "
Nottinghamshire Fire and Rescue Service ,102280,Amptron Electrical Services,Amptron Electrical Services,Operational Responses,1,202406,31/08/2023,P6,9108026,"-47,318.91 ","47,318.91 ",2000,Buildings Repairs and Maintenance - Reactive,1003,London Road,114.21 
Nottinghamshire Fire and Rescue Service ,102280,Amptron Electrical Services,Amptron Electrical Services,Operational Responses,1,202406,31/08/2023,P6,9108026,"-47,318.91 ","47,318.91 ",2000,Buildings Repairs and Maintenance - Reactive,1005,Ashfield,"2,407.18 "
Nottinghamshire Fire and Rescue Service ,102280,Amptron Electrical Services,Amptron Electrical Services,Operational Responses,1,202406,31/08/2023,P6,9108026,"-47,318.91 ","47,318.91 ",2000,Buildings Repairs and Maintenance - Reactive,1006,Edwinstowe,101.66 
Nottinghamshire Fire and Rescue Service ,102280,Amptron Electrical Services,Amptron Electrical Services,Operational Responses,1,202406,31/08/2023,P6,9108026,"-47,318.91 ","47,318.91 ",2000,Buildings Repairs and Maintenance - Reactive,1008,Worksop,97.42 
Nottinghamshire Fire and Rescue Service ,102280,Amptron Electrical Services,Amptron Electrical Services,Operational Responses,1,202406,31/08/2023,P6,9108026,"-47,318.91 ","47,318.91 ",2000,Buildings Repairs and Maintenance - Reactive,1010,Harworth,744.89 
Nottinghamshire Fire and Rescue Service ,102280,Amptron Electrical Services,Amptron Electrical Services,Operational Responses,1,202406,31/08/2023,P6,9108026,"-47,318.91 ","47,318.91 ",2000,Buildings Repairs and Maintenance - Reactive,1012,Retford,219.28 
Nottinghamshire Fire and Rescue Service ,102280,Amptron Electrical Services,Amptron Electrical Services,Operational Responses,1,202406,31/08/2023,P6,9108026,"-47,318.91 ","47,318.91 ",2000,Buildings Repairs and Maintenance - Reactive,1013,Tuxford,737.09 
Nottinghamshire Fire and Rescue Service ,102280,Amptron Electrical Services,Amptron Electrical Services,Operational Responses,1,202406,31/08/2023,P6,9108026,"-47,318.91 ","47,318.91 ",2000,Buildings Repairs and Maintenance - Reactive,1015,Collingham,"4,392.03 "
Nottinghamshire Fire and Rescue Service ,102280,Amptron Electrical Services,Amptron Electrical Services,Operational Responses,1,202406,31/08/2023,P6,9108026,"-47,318.91 ","47,318.91 ",2000,Buildings Repairs and Maintenance - Reactive,1016,Newark,"1,527.79 "
Nottinghamshire Fire and Rescue Service ,102280,Amptron Electrical Services,Amptron Electrical Services,Operational Responses,1,202406,31/08/2023,P6,9108026,"-47,318.91 ","47,318.91 ",2000,Buildings Repairs and Maintenance - Reactive,1017,Bingham,"1,065.13 "
Nottinghamshire Fire and Rescue Service ,102280,Amptron Electrical Services,Amptron Electrical Services,Operational Responses,1,202406,31/08/2023,P6,9108026,"-47,318.91 ","47,318.91 ",2000,Buildings Repairs and Maintenance - Reactive,1019,West Bridgford,"9,650.52 "
Nottinghamshire Fire and Rescue Service ,102280,Amptron Electrical Services,Amptron Electrical Services,Operational Responses,1,202406,31/08/2023,P6,9108026,"-47,318.91 ","47,318.91 ",2000,Buildings Repairs and Maintenance - Reactive,1020,Stockhill,994.12 
Nottinghamshire Fire and Rescue Service ,102280,Amptron Electrical Services,Amptron Electrical Services,Operational Responses,1,202406,31/08/2023,P6,9108026,"-47,318.91 ","47,318.91 ",2000,Buildings Repairs and Maintenance - Reactive,1023,Stapleford,59.83 
Nottinghamshire Fire and Rescue Service ,102280,Amptron Electrical Services,Amptron Electrical Services,Operational Responses,1,202406,31/08/2023,P6,9108026,"-47,318.91 ","47,318.91 ",2000,Buildings Repairs and Maintenance - Reactive,1024,Eastwood,501.76 
Nottinghamshire Fire and Rescue Service ,102280,Amptron Electrical Services,Amptron Electrical Services,Operational Responses,1,202406,31/08/2023,P6,9108026,"-47,318.91 ","47,318.91 ",2000,Buildings Repairs and Maintenance - Reactive,1026,Arnold,"3,434.99 "
Nottinghamshire Fire and Rescue Service ,102280,Amptron Electrical Services,Amptron Electrical Services,Operational Responses,1,202406,31/08/2023,P6,9108026,"-47,318.91 ","47,318.91 ",2000,Buildings Repairs and Maintenance - Reactive,1027,Carlton,237.89 
Nottinghamshire Fire and Rescue Service ,102280,Amptron Electrical Services,Amptron Electrical Services,Operational Responses,1,202406,31/08/2023,P6,9108026,"-47,318.91 ","47,318.91 ",2000,Buildings Repairs and Maintenance - Reactive,1029,Highfields Station,"1,969.00 "
Nottinghamshire Fire and Rescue Service ,102280,Amptron Electrical Services,Amptron Electrical Services,Management & Support Services,1,202406,31/08/2023,P6,9108026,"-47,318.91 ","47,318.91 ",2000,Buildings Repairs and Maintenance - Reactive,1035,Headquarters,174.00 
Nottinghamshire Fire and Rescue Service ,100125,Nottinghamshire County Council,Nottinghamshire County Council,Operational Responses,1,202406,07/09/2023,P6,9108066,-278.40 ,278.40 ,2000,Buildings Repairs and Maintenance - Reactive,1020,Stockhill,232.00 
Nottinghamshire Fire and Rescue Service ,102280,Amptron Electrical Services,Amptron Electrical Services,Operational Responses,1,202406,22/09/2023,P6,9108249,"-4,559.99 ","4,559.99 ",2000,Buildings Repairs and Maintenance - Reactive,1001,Mansfield,174.00 
Nottinghamshire Fire and Rescue Service ,102280,Amptron Electrical Services,Amptron Electrical Services,Operational Responses,1,202406,22/09/2023,P6,9108249,"-4,559.99 ","4,559.99 ",2000,Buildings Repairs and Maintenance - Reactive,1005,Ashfield,589.18 
Nottinghamshire Fire and Rescue Service ,102280,Amptron Electrical Services,Amptron Electrical Services,Operational Responses,1,202406,22/09/2023,P6,9108249,"-4,559.99 ","4,559.99 ",2000,Buildings Repairs and Maintenance - Reactive,1008,Worksop,922.82 
Nottinghamshire Fire and Rescue Service ,102280,Amptron Electrical Services,Amptron Electrical Services,Operational Responses,1,202406,22/09/2023,P6,9108249,"-4,559.99 ","4,559.99 ",2000,Buildings Repairs and Maintenance - Reactive,1010,Harworth,232.80 
Nottinghamshire Fire and Rescue Service ,102280,Amptron Electrical Services,Amptron Electrical Services,Operational Responses,1,202406,22/09/2023,P6,9108249,"-4,559.99 ","4,559.99 ",2000,Buildings Repairs and Maintenance - Reactive,1011,Misterton,187.01 
Nottinghamshire Fire and Rescue Service ,102280,Amptron Electrical Services,Amptron Electrical Services,Operational Responses,1,202406,22/09/2023,P6,9108249,"-4,559.99 ","4,559.99 ",2000,Buildings Repairs and Maintenance - Reactive,1012,Retford,69.23 
Nottinghamshire Fire and Rescue Service ,102280,Amptron Electrical Services,Amptron Electrical Services,Operational Responses,1,202406,22/09/2023,P6,9108249,"-4,559.99 ","4,559.99 ",2000,Buildings Repairs and Maintenance - Reactive,1014,Southwell,266.41 
Nottinghamshire Fire and Rescue Service ,102280,Amptron Electrical Services,Amptron Electrical Services,Operational Responses,1,202406,22/09/2023,P6,9108249,"-4,559.99 ","4,559.99 ",2000,Buildings Repairs and Maintenance - Reactive,1015,Collingham,232.80 
Nottinghamshire Fire and Rescue Service ,102280,Amptron Electrical Services,Amptron Electrical Services,Operational Responses,1,202406,22/09/2023,P6,9108249,"-4,559.99 ","4,559.99 ",2000,Buildings Repairs and Maintenance - Reactive,1020,Stockhill,286.80 
Nottinghamshire Fire and Rescue Service ,102280,Amptron Electrical Services,Amptron Electrical Services,Operational Responses,1,202406,22/09/2023,P6,9108249,"-4,559.99 ","4,559.99 ",2000,Buildings Repairs and Maintenance - Reactive,1027,Carlton,223.39 
Nottinghamshire Fire and Rescue Service ,102280,Amptron Electrical Services,Amptron Electrical Services,Operational Responses,1,202406,22/09/2023,P6,9108249,"-4,559.99 ","4,559.99 ",2000,Buildings Repairs and Maintenance - Reactive,1029,Highfields Station,615.55 
Nottinghamshire Fire and Rescue Service ,100357,Eastern Shires Purchasing Organisation,Eastern Shires Purchasing Organisation,Operational Responses,1,202406,22/09/2023,P6,9108341,-317.94 ,317.94 ,2000,Buildings Repairs and Maintenance - Reactive,1008,Worksop,264.95 
Nottinghamshire Fire and Rescue Service ,103837,BWT UK Limited,BWT UK Limited,Management & Support Services,5,202406,31/05/2023,P6,9107970,-518.69 ,518.69 ,2050,Building Maintenance - Planned,2087,Estates Department (Previously Premises),432.25 
Nottinghamshire Fire and Rescue Service ,103837,BWT UK Limited,BWT UK Limited,Management & Support Services,5,202406,30/06/2023,P6,9107971,-518.69 ,518.69 ,2050,Building Maintenance - Planned,2087,Estates Department (Previously Premises),432.25 
Nottinghamshire Fire and Rescue Service ,102280,Amptron Electrical Services,Amptron Electrical Services,Operational Responses,1,202406,31/08/2023,P6,9107972,"-1,332.00 ","1,332.00 ",2050,Building Maintenance - Planned,1024,Eastwood,"1,110.00 "
Nottinghamshire Fire and Rescue Service ,102280,Amptron Electrical Services,Amptron Electrical Services,Operational Responses,1,202406,31/08/2023,P6,9108025,"-1,821.60 ","1,821.60 ",2050,Building Maintenance - Planned,1020,Stockhill,"1,518.00 "
Nottinghamshire Fire and Rescue Service ,102280,Amptron Electrical Services,Amptron Electrical Services,Operational Responses,1,202406,31/08/2023,P6,9108027,"-26,971.50 ","26,971.50 ",2050,Building Maintenance - Planned,1001,Mansfield,"1,345.57 "
Nottinghamshire Fire and Rescue Service ,102280,Amptron Electrical Services,Amptron Electrical Services,Operational Responses,1,202406,31/08/2023,P6,9108027,"-26,971.50 ","26,971.50 ",2050,Building Maintenance - Planned,1002,Blidworth,461.92 
Nottinghamshire Fire and Rescue Service ,102280,Amptron Electrical Services,Amptron Electrical Services,Operational Responses,1,202406,31/08/2023,P6,9108027,"-26,971.50 ","26,971.50 ",2050,Building Maintenance - Planned,1003,London Road,"1,020.86 "
Nottinghamshire Fire and Rescue Service ,102280,Amptron Electrical Services,Amptron Electrical Services,Operational Responses,1,202406,31/08/2023,P6,9108027,"-26,971.50 ","26,971.50 ",2050,Building Maintenance - Planned,1005,Ashfield,"1,145.82 "
Nottinghamshire Fire and Rescue Service ,102280,Amptron Electrical Services,Amptron Electrical Services,Operational Responses,1,202406,31/08/2023,P6,9108027,"-26,971.50 ","26,971.50 ",2050,Building Maintenance - Planned,1006,Edwinstowe,745.02 
Nottinghamshire Fire and Rescue Service ,102280,Amptron Electrical Services,Amptron Electrical Services,Operational Responses,1,202406,31/08/2023,P6,9108027,"-26,971.50 ","26,971.50 ",2050,Building Maintenance - Planned,1007,Warsop,453.15 
Nottinghamshire Fire and Rescue Service ,102280,Amptron Electrical Services,Amptron Electrical Services,Operational Responses,1,202406,31/08/2023,P6,9108027,"-26,971.50 ","26,971.50 ",2050,Building Maintenance - Planned,1008,Worksop,"1,189.38 "
Nottinghamshire Fire and Rescue Service ,102280,Amptron Electrical Services,Amptron Electrical Services,Operational Responses,1,202406,31/08/2023,P6,9108027,"-26,971.50 ","26,971.50 ",2050,Building Maintenance - Planned,1010,Harworth,488.88 
Nottinghamshire Fire and Rescue Service ,102280,Amptron Electrical Services,Amptron Electrical Services,Operational Responses,1,202406,31/08/2023,P6,9108027,"-26,971.50 ","26,971.50 ",2050,Building Maintenance - Planned,1011,Misterton,378.52 
Nottinghamshire Fire and Rescue Service ,102280,Amptron Electrical Services,Amptron Electrical Services,Operational Responses,1,202406,31/08/2023,P6,9108027,"-26,971.50 ","26,971.50 ",2050,Building Maintenance - Planned,1012,Retford,"1,215.34 "
Nottinghamshire Fire and Rescue Service ,102280,Amptron Electrical Services,Amptron Electrical Services,Operational Responses,1,202406,31/08/2023,P6,9108027,"-26,971.50 ","26,971.50 ",2050,Building Maintenance - Planned,1013,Tuxford,719.25 
Nottinghamshire Fire and Rescue Service ,102280,Amptron Electrical Services,Amptron Electrical Services,Operational Responses,1,202406,31/08/2023,P6,9108027,"-26,971.50 ","26,971.50 ",2050,Building Maintenance - Planned,1014,Southwell,322.47 
Nottinghamshire Fire and Rescue Service ,102280,Amptron Electrical Services,Amptron Electrical Services,Operational Responses,1,202406,31/08/2023,P6,9108027,"-26,971.50 ","26,971.50 ",2050,Building Maintenance - Planned,1015,Collingham,507.09 
Nottinghamshire Fire and Rescue Service ,102280,Amptron Electrical Services,Amptron Electrical Services,Operational Responses,1,202406,31/08/2023,P6,9108027,"-26,971.50 ","26,971.50 ",2050,Building Maintenance - Planned,1016,Newark,"1,241.57 "
Nottinghamshire Fire and Rescue Service ,102280,Amptron Electrical Services,Amptron Electrical Services,Operational Responses,1,202406,31/08/2023,P6,9108027,"-26,971.50 ","26,971.50 ",2050,Building Maintenance - Planned,1017,Bingham,383.48 
Nottinghamshire Fire and Rescue Service ,102280,Amptron Electrical Services,Amptron Electrical Services,Operational Responses,1,202406,31/08/2023,P6,9108027,"-26,971.50 ","26,971.50 ",2050,Building Maintenance - Planned,1019,West Bridgford,"1,649.18 "
Nottinghamshire Fire and Rescue Service ,102280,Amptron Electrical Services,Amptron Electrical Services,Operational Responses,1,202406,31/08/2023,P6,9108027,"-26,971.50 ","26,971.50 ",2050,Building Maintenance - Planned,1020,Stockhill,"1,432.44 "
Nottinghamshire Fire and Rescue Service ,102280,Amptron Electrical Services,Amptron Electrical Services,Operational Responses,1,202406,31/08/2023,P6,9108027,"-26,971.50 ","26,971.50 ",2050,Building Maintenance - Planned,1023,Stapleford,442.57 
Nottinghamshire Fire and Rescue Service ,102280,Amptron Electrical Services,Amptron Electrical Services,Operational Responses,1,202406,31/08/2023,P6,9108027,"-26,971.50 ","26,971.50 ",2050,Building Maintenance - Planned,1024,Eastwood,447.02 
Nottinghamshire Fire and Rescue Service ,102280,Amptron Electrical Services,Amptron Electrical Services,Operational Responses,1,202406,31/08/2023,P6,9108027,"-26,971.50 ","26,971.50 ",2050,Building Maintenance - Planned,1025,Hucknall,149.76 
Nottinghamshire Fire and Rescue Service ,102280,Amptron Electrical Services,Amptron Electrical Services,Operational Responses,1,202406,31/08/2023,P6,9108027,"-26,971.50 ","26,971.50 ",2050,Building Maintenance - Planned,1026,Arnold,"1,350.58 "
Nottinghamshire Fire and Rescue Service ,102280,Amptron Electrical Services,Amptron Electrical Services,Operational Responses,1,202406,31/08/2023,P6,9108027,"-26,971.50 ","26,971.50 ",2050,Building Maintenance - Planned,1027,Carlton,"1,214.02 "
Nottinghamshire Fire and Rescue Service ,102280,Amptron Electrical Services,Amptron Electrical Services,Operational Responses,1,202406,31/08/2023,P6,9108027,"-26,971.50 ","26,971.50 ",2050,Building Maintenance - Planned,1028,East Leake,472.75 
Nottinghamshire Fire and Rescue Service ,102280,Amptron Electrical Services,Amptron Electrical Services,Operational Responses,1,202406,31/08/2023,P6,9108027,"-26,971.50 ","26,971.50 ",2050,Building Maintenance - Planned,1029,Highfields Station,"2,979.47 "
Nottinghamshire Fire and Rescue Service ,102280,Amptron Electrical Services,Amptron Electrical Services,Management & Support Services,1,202406,31/08/2023,P6,9108027,"-26,971.50 ","26,971.50 ",2050,Building Maintenance - Planned,1030,Service Development Centre,720.14 
Nottinghamshire Fire and Rescue Service ,102280,Amptron Electrical Services,Amptron Electrical Services,Operational Responses,1,202406,31/08/2023,P6,9108033,"-1,595.30 ","1,595.30 ",2050,Building Maintenance - Planned,1024,Eastwood,"1,329.42 "
Nottinghamshire Fire and Rescue Service ,102280,Amptron Electrical Services,Amptron Electrical Services,Operational Responses,1,202406,31/08/2023,P6,9108034,"-1,236.82 ","1,236.82 ",2050,Building Maintenance - Planned,1006,Edwinstowe,"1,030.68 "
Nottinghamshire Fire and Rescue Service ,102280,Amptron Electrical Services,Amptron Electrical Services,Management & Support Services,1,202406,31/08/2023,P6,9108067,"-13,496.86 ","13,496.86 ",2050,Building Maintenance - Planned,1035,Headquarters,"11,247.38 "
Nottinghamshire Fire and Rescue Service ,102280,Amptron Electrical Services,Amptron Electrical Services,Operational Responses,1,202406,22/09/2023,P6,9108250,"-1,854.20 ","1,854.20 ",2050,Building Maintenance - Planned,1001,Mansfield,646.61 
Nottinghamshire Fire and Rescue Service ,102280,Amptron Electrical Services,Amptron Electrical Services,Management & Support Services,1,202406,22/09/2023,P6,9108250,"-1,854.20 ","1,854.20 ",2050,Building Maintenance - Planned,1030,Service Development Centre,898.56 
Nottinghamshire Fire and Rescue Service ,101767,Cathedral Leasing Limited,Cathedral Leasing Limited,Management & Support Services,1,202406,01/09/2023,P6,9108342,"-3,715.20 ","3,715.20 ",2050,Building Maintenance - Planned,2087,Estates Department (Previously Premises),"3,096.00 "
Nottinghamshire Fire and Rescue Service ,103837,BWT UK Limited,BWT UK Limited,Management & Support Services,5,202406,31/08/2023,P6,9108353,-518.69 ,518.69 ,2050,Building Maintenance - Planned,2087,Estates Department (Previously Premises),432.25 
Nottinghamshire Fire and Rescue Service ,102744,EDF Energy,EDF Energy,Operational Responses,1,202406,31/08/2023,P6,9107977,-353.72 ,353.72 ,2100,Electricity,1002,Blidworth,336.88 
Nottinghamshire Fire and Rescue Service ,102744,EDF Energy,EDF Energy,Operational Responses,1,202406,27/08/2023,P6,9107978,"-1,944.88 ","1,944.88 ",2100,Electricity,1008,Worksop,"1,620.73 "
Nottinghamshire Fire and Rescue Service ,102744,EDF Energy,EDF Energy,Operational Responses,1,202406,01/09/2023,P6,9107979,"-2,091.46 ","2,091.46 ",2100,Electricity,1008,Worksop,"1,742.88 "
Nottinghamshire Fire and Rescue Service ,102744,EDF Energy,EDF Energy,Operational Responses,1,202406,31/08/2023,P6,9107980,"-2,687.77 ","2,687.77 ",2100,Electricity,1001,Mansfield,"2,239.81 "
Nottinghamshire Fire and Rescue Service ,102744,EDF Energy,EDF Energy,Operational Responses,1,202406,31/08/2023,P6,9107981,"-2,068.71 ","2,068.71 ",2100,Electricity,1026,Arnold,"1,723.92 "
Nottinghamshire Fire and Rescue Service ,102744,EDF Energy,EDF Energy,Operational Responses,1,202406,31/08/2023,P6,9107982,-529.26 ,529.26 ,2100,Electricity,1014,Southwell,1.13 
Nottinghamshire Fire and Rescue Service ,102744,EDF Energy,EDF Energy,Operational Responses,1,202406,31/08/2023,P6,9107982,-529.26 ,529.26 ,2100,Electricity,1014,Southwell,440.11 
Nottinghamshire Fire and Rescue Service ,102744,EDF Energy,EDF Energy,Operational Responses,1,202406,31/08/2023,P6,9107984,"-1,013.50 ","1,013.50 ",2100,Electricity,1013,Tuxford,844.59 
Nottinghamshire Fire and Rescue Service ,102744,EDF Energy,EDF Energy,Operational Responses,1,202406,31/08/2023,P6,9107985,-269.92 ,269.92 ,2100,Electricity,1001,Mansfield,2.50 
Nottinghamshire Fire and Rescue Service ,102744,EDF Energy,EDF Energy,Operational Responses,1,202406,31/08/2023,P6,9107985,-269.92 ,269.92 ,2100,Electricity,1001,Mansfield,254.69 
Nottinghamshire Fire and Rescue Service ,101903,Siemens Energy Services Ltd,Siemens Energy Services Ltd,Operational Responses,1,202406,29/08/2023,P6,9108147,-727.20 ,727.20 ,2100,Electricity,1029,Highfields Station,606.00 
Nottinghamshire Fire and Rescue Service ,102744,EDF Energy,EDF Energy,Operational Responses,1,202406,05/09/2023,P6,9108148,-576.17 ,576.17 ,2100,Electricity,1015,Collingham,480.14 
Nottinghamshire Fire and Rescue Service ,102744,EDF Energy,EDF Energy,Operational Responses,1,202406,06/09/2023,P6,9108149,-521.86 ,521.86 ,2100,Electricity,1028,East Leake,434.88 
Nottinghamshire Fire and Rescue Service ,102744,EDF Energy,EDF Energy,Operational Responses,1,202406,06/09/2023,P6,9108154,"-26,285.31 ","26,285.31 ",2100,Electricity,1003,London Road,"3,581.84 "
Nottinghamshire Fire and Rescue Service ,102744,EDF Energy,EDF Energy,Operational Responses,1,202406,06/09/2023,P6,9108154,"-26,285.31 ","26,285.31 ",2100,Electricity,1012,Retford,"2,420.09 "
Nottinghamshire Fire and Rescue Service ,102744,EDF Energy,EDF Energy,Operational Responses,1,202406,06/09/2023,P6,9108154,"-26,285.31 ","26,285.31 ",2100,Electricity,1016,Newark,"1,656.19 "
Nottinghamshire Fire and Rescue Service ,102744,EDF Energy,EDF Energy,Operational Responses,1,202406,06/09/2023,P6,9108154,"-26,285.31 ","26,285.31 ",2100,Electricity,1027,Carlton,"3,685.34 "
Nottinghamshire Fire and Rescue Service ,102744,EDF Energy,EDF Energy,Operational Responses,1,202406,06/09/2023,P6,9108154,"-26,285.31 ","26,285.31 ",2100,Electricity,1029,Highfields Station,"6,252.07 "
Nottinghamshire Fire and Rescue Service ,102744,EDF Energy,EDF Energy,Management & Support Services,1,202406,06/09/2023,P6,9108154,"-26,285.31 ","26,285.31 ",2100,Electricity,1030,Service Development Centre,"2,863.57 "
Nottinghamshire Fire and Rescue Service ,102744,EDF Energy,EDF Energy,Management & Support Services,1,202406,06/09/2023,P6,9108154,"-26,285.31 ","26,285.31 ",2100,Electricity,1035,Headquarters,"1,326.40 "
Nottinghamshire Fire and Rescue Service ,102744,EDF Energy,EDF Energy,Management & Support Services,1,202406,06/09/2023,P6,9108154,"-26,285.31 ","26,285.31 ",2100,Electricity,2087,Estates Department (Previously Premises),142.71 
Nottinghamshire Fire and Rescue Service ,102744,EDF Energy,EDF Energy,Operational Responses,1,202406,08/09/2023,P6,9108155,-598.72 ,598.72 ,2100,Electricity,1007,Warsop,498.93 
Nottinghamshire Fire and Rescue Service ,102744,EDF Energy,EDF Energy,Operational Responses,1,202406,12/09/2023,P6,9108157,-439.27 ,439.27 ,2100,Electricity,1007,Warsop,366.06 
Nottinghamshire Fire and Rescue Service ,102744,EDF Energy,EDF Energy,Operational Responses,1,202406,12/09/2023,P6,9108158,-447.61 ,447.61 ,2100,Electricity,1007,Warsop,373.01 
Nottinghamshire Fire and Rescue Service ,102744,EDF Energy,EDF Energy,Operational Responses,1,202406,12/09/2023,P6,9108159,-437.57 ,437.57 ,2100,Electricity,1007,Warsop,364.64 
Nottinghamshire Fire and Rescue Service ,102744,EDF Energy,EDF Energy,Operational Responses,1,202406,12/09/2023,P6,9108160,-451.28 ,451.28 ,2100,Electricity,1007,Warsop,376.07 
Nottinghamshire Fire and Rescue Service ,102744,EDF Energy,EDF Energy,Operational Responses,1,202406,12/09/2023,P6,9108161,-486.77 ,486.77 ,2100,Electricity,1007,Warsop,405.64 
Nottinghamshire Fire and Rescue Service ,102744,EDF Energy,EDF Energy,Operational Responses,1,202406,12/09/2023,P6,9108162,-513.12 ,513.12 ,2100,Electricity,1007,Warsop,427.60 
Nottinghamshire Fire and Rescue Service ,102744,EDF Energy,EDF Energy,Operational Responses,1,202406,12/09/2023,P6,9108163,-494.71 ,494.71 ,2100,Electricity,1007,Warsop,412.26 
Nottinghamshire Fire and Rescue Service ,102744,EDF Energy,EDF Energy,Operational Responses,1,202406,18/09/2023,P6,9108164,"-1,746.52 ","1,746.52 ",2100,Electricity,1024,Eastwood,"1,455.43 "
Nottinghamshire Fire and Rescue Service ,102744,EDF Energy,EDF Energy,Operational Responses,1,202406,12/09/2023,P6,9108165,-493.01 ,493.01 ,2100,Electricity,1007,Warsop,410.84 
Nottinghamshire Fire and Rescue Service ,102744,EDF Energy,EDF Energy,Operational Responses,1,202406,12/09/2023,P6,9108166,-452.47 ,452.47 ,2100,Electricity,1007,Warsop,377.06 
Nottinghamshire Fire and Rescue Service ,102744,EDF Energy,EDF Energy,Operational Responses,1,202406,12/09/2023,P6,9108167,-511.03 ,511.03 ,2100,Electricity,1007,Warsop,425.86 
Nottinghamshire Fire and Rescue Service ,102744,EDF Energy,EDF Energy,Operational Responses,1,202406,12/09/2023,P6,9108168,-548.99 ,548.99 ,2100,Electricity,1007,Warsop,457.49 
Nottinghamshire Fire and Rescue Service ,102744,EDF Energy,EDF Energy,Operational Responses,1,202406,12/09/2023,P6,9108169,-614.94 ,614.94 ,2100,Electricity,1007,Warsop,512.45 
Nottinghamshire Fire and Rescue Service ,102744,EDF Energy,EDF Energy,Operational Responses,1,202406,12/09/2023,P6,9108170,-548.46 ,548.46 ,2100,Electricity,1007,Warsop,457.05 
Nottinghamshire Fire and Rescue Service ,102744,EDF Energy,EDF Energy,Operational Responses,1,202406,12/09/2023,P6,9108171,-566.20 ,566.20 ,2100,Electricity,1007,Warsop,471.83 
Nottinghamshire Fire and Rescue Service ,102744,EDF Energy,EDF Energy,Operational Responses,1,202406,12/09/2023,P6,9108172,-582.25 ,582.25 ,2100,Electricity,1007,Warsop,485.21 
Nottinghamshire Fire and Rescue Service ,102744,EDF Energy,EDF Energy,Operational Responses,1,202406,18/09/2023,P6,9108197,"-2,818.77 ","2,818.77 ",2100,Electricity,1024,Eastwood,"2,348.98 "
Nottinghamshire Fire and Rescue Service ,102744,EDF Energy,EDF Energy,Operational Responses,1,202406,18/09/2023,P6,9108198,"-3,294.60 ","3,294.60 ",2100,Electricity,1024,Eastwood,"2,745.49 "
Nottinghamshire Fire and Rescue Service ,102744,EDF Energy,EDF Energy,Operational Responses,1,202406,01/06/2023,P6,9108228,-368.42 ,368.42 ,2100,Electricity,2078,Mansfield Fire Station Museum,350.88 
Nottinghamshire Fire and Rescue Service ,102744,EDF Energy,EDF Energy,Operational Responses,1,202406,27/08/2023,P6,9107975,"1,899.73 ","-1,899.73 ",2100,Electricity,1008,Worksop,"-1,583.11 "
Nottinghamshire Fire and Rescue Service ,102744,EDF Energy,EDF Energy,Operational Responses,1,202406,11/09/2023,P6,9108146,598.72 ,-598.72 ,2100,Electricity,1007,Warsop,-498.93 
Nottinghamshire Fire and Rescue Service ,102744,EDF Energy,EDF Energy,Operational Responses,1,202406,11/09/2023,P6,9108150,573.80 ,-573.80 ,2100,Electricity,1007,Warsop,-472.57 
Nottinghamshire Fire and Rescue Service ,102744,EDF Energy,EDF Energy,Operational Responses,1,202406,11/09/2023,P6,9108150,573.80 ,-573.80 ,2100,Electricity,1007,Warsop,-6.71 
Nottinghamshire Fire and Rescue Service ,102744,EDF Energy,EDF Energy,Operational Responses,1,202406,11/09/2023,P6,9108151,552.56 ,-552.56 ,2100,Electricity,1007,Warsop,-460.46 
Nottinghamshire Fire and Rescue Service ,102744,EDF Energy,EDF Energy,Operational Responses,1,202406,11/09/2023,P6,9108152,587.17 ,-587.17 ,2100,Electricity,1007,Warsop,-489.31 
Nottinghamshire Fire and Rescue Service ,102744,EDF Energy,EDF Energy,Operational Responses,1,202406,11/09/2023,P6,9108153,"5,541.52 ","-5,541.52 ",2100,Electricity,1007,Warsop,"-4,617.94 "
Nottinghamshire Fire and Rescue Service ,104098,Total Gas & Power Limited,Total Gas & Power Limited,Operational Responses,5,202406,11/08/2023,P6,9107959,-410.43 ,410.43 ,2101,Gas,1016,Newark,390.89 
Nottinghamshire Fire and Rescue Service ,104098,Total Gas & Power Limited,Total Gas & Power Limited,Operational Responses,5,202406,11/08/2023,P6,9107960,"-1,049.14 ","1,049.14 ",2101,Gas,1001,Mansfield,874.28 
Nottinghamshire Fire and Rescue Service ,104098,Total Gas & Power Limited,Total Gas & Power Limited,Operational Responses,5,202406,13/09/2023,P6,9108173,-377.47 ,377.47 ,2101,Gas,1024,Eastwood,359.50 
Nottinghamshire Fire and Rescue Service ,104098,Total Gas & Power Limited,Total Gas & Power Limited,Operational Responses,5,202406,13/09/2023,P6,9108174,-326.13 ,326.13 ,2101,Gas,1012,Retford,310.60 
Nottinghamshire Fire and Rescue Service ,104098,Total Gas & Power Limited,Total Gas & Power Limited,Operational Responses,5,202406,13/09/2023,P6,9108177,-657.29 ,657.29 ,2101,Gas,1016,Newark,547.74 
Nottinghamshire Fire and Rescue Service ,104098,Total Gas & Power Limited,Total Gas & Power Limited,Operational Responses,5,202406,13/09/2023,P6,9108178,"-1,009.22 ","1,009.22 ",2101,Gas,1001,Mansfield,841.01 
Nottinghamshire Fire and Rescue Service ,104098,Total Gas & Power Limited,Total Gas & Power Limited,Operational Responses,5,202406,13/09/2023,P6,9108179,-450.74 ,450.74 ,2101,Gas,1001,Mansfield,429.28 
Nottinghamshire Fire and Rescue Service ,104098,Total Gas & Power Limited,Total Gas & Power Limited,Operational Responses,5,202406,13/09/2023,P6,9108180,"-1,910.47 ","1,910.47 ",2101,Gas,1005,Ashfield,"1,592.06 "
Nottinghamshire Fire and Rescue Service ,104098,Total Gas & Power Limited,Total Gas & Power Limited,Operational Responses,5,202406,13/09/2023,P6,9108182,-528.35 ,528.35 ,2101,Gas,1019,West Bridgford,503.19 
Nottinghamshire Fire and Rescue Service ,104098,Total Gas & Power Limited,Total Gas & Power Limited,Operational Responses,5,202406,13/09/2023,P6,9108183,-738.43 ,738.43 ,2101,Gas,1026,Arnold,703.27 
Nottinghamshire Fire and Rescue Service ,104098,Total Gas & Power Limited,Total Gas & Power Limited,Operational Responses,5,202406,13/09/2023,P6,9108184,"-7,754.49 ","7,754.49 ",2101,Gas,1029,Highfields Station,"6,462.07 "
Nottinghamshire Fire and Rescue Service ,104098,Total Gas & Power Limited,Total Gas & Power Limited,Operational Responses,5,202406,13/09/2023,P6,9108188,"-1,927.36 ","1,927.36 ",2101,Gas,1020,Stockhill,"1,606.14 "
Nottinghamshire Fire and Rescue Service ,104098,Total Gas & Power Limited,Total Gas & Power Limited,Management & Support Services,5,202406,13/09/2023,P6,9108189,"-1,092.55 ","1,092.55 ",2101,Gas,1030,Service Development Centre,910.46 
Nottinghamshire Fire and Rescue Service ,104098,Total Gas & Power Limited,Total Gas & Power Limited,Operational Responses,5,202406,13/09/2023,P6,9108193,-350.53 ,350.53 ,2101,Gas,1010,Harworth,333.83 
Nottinghamshire Fire and Rescue Service ,104098,Total Gas & Power Limited,Total Gas & Power Limited,Operational Responses,5,202406,13/09/2023,P6,9108195,"-1,040.58 ","1,040.58 ",2101,Gas,1006,Edwinstowe,867.16 
Nottinghamshire Fire and Rescue Service ,104256,Advanced Demand Side Management Limited,Advanced Demand Side Management Limited,Operational Responses,5,202406,01/09/2023,P6,9108199,"-5,812.03 ","5,812.03 ",2103,Water Rates,1001,Mansfield,34.04 
Nottinghamshire Fire and Rescue Service ,104256,Advanced Demand Side Management Limited,Advanced Demand Side Management Limited,Operational Responses,5,202406,01/09/2023,P6,9108199,"-5,812.03 ","5,812.03 ",2103,Water Rates,1001,Mansfield,41.14 
Nottinghamshire Fire and Rescue Service ,104256,Advanced Demand Side Management Limited,Advanced Demand Side Management Limited,Operational Responses,5,202406,01/09/2023,P6,9108199,"-5,812.03 ","5,812.03 ",2103,Water Rates,1002,Blidworth,2.55 
Nottinghamshire Fire and Rescue Service ,104256,Advanced Demand Side Management Limited,Advanced Demand Side Management Limited,Operational Responses,5,202406,01/09/2023,P6,9108199,"-5,812.03 ","5,812.03 ",2103,Water Rates,1003,London Road,70.49 
Nottinghamshire Fire and Rescue Service ,104256,Advanced Demand Side Management Limited,Advanced Demand Side Management Limited,Operational Responses,5,202406,01/09/2023,P6,9108199,"-5,812.03 ","5,812.03 ",2103,Water Rates,1005,Ashfield,56.74 
Nottinghamshire Fire and Rescue Service ,104256,Advanced Demand Side Management Limited,Advanced Demand Side Management Limited,Operational Responses,5,202406,01/09/2023,P6,9108199,"-5,812.03 ","5,812.03 ",2103,Water Rates,1006,Edwinstowe,50.56 
Nottinghamshire Fire and Rescue Service ,104256,Advanced Demand Side Management Limited,Advanced Demand Side Management Limited,Operational Responses,5,202406,01/09/2023,P6,9108199,"-5,812.03 ","5,812.03 ",2103,Water Rates,1007,Warsop,19.91 
Nottinghamshire Fire and Rescue Service ,104256,Advanced Demand Side Management Limited,Advanced Demand Side Management Limited,Operational Responses,5,202406,01/09/2023,P6,9108199,"-5,812.03 ","5,812.03 ",2103,Water Rates,1008,Worksop,77.51 
Nottinghamshire Fire and Rescue Service ,104256,Advanced Demand Side Management Limited,Advanced Demand Side Management Limited,Operational Responses,5,202406,01/09/2023,P6,9108199,"-5,812.03 ","5,812.03 ",2103,Water Rates,1010,Harworth,24.14 
Nottinghamshire Fire and Rescue Service ,104256,Advanced Demand Side Management Limited,Advanced Demand Side Management Limited,Operational Responses,5,202406,01/09/2023,P6,9108199,"-5,812.03 ","5,812.03 ",2103,Water Rates,1012,Retford,36.39 
Nottinghamshire Fire and Rescue Service ,104256,Advanced Demand Side Management Limited,Advanced Demand Side Management Limited,Operational Responses,5,202406,01/09/2023,P6,9108199,"-5,812.03 ","5,812.03 ",2103,Water Rates,1013,Tuxford,66.22 
Nottinghamshire Fire and Rescue Service ,104256,Advanced Demand Side Management Limited,Advanced Demand Side Management Limited,Operational Responses,5,202406,01/09/2023,P6,9108199,"-5,812.03 ","5,812.03 ",2103,Water Rates,1013,Tuxford,153.98 
Nottinghamshire Fire and Rescue Service ,104256,Advanced Demand Side Management Limited,Advanced Demand Side Management Limited,Operational Responses,5,202406,01/09/2023,P6,9108199,"-5,812.03 ","5,812.03 ",2103,Water Rates,1014,Southwell,-41.92 
Nottinghamshire Fire and Rescue Service ,104256,Advanced Demand Side Management Limited,Advanced Demand Side Management Limited,Operational Responses,5,202406,01/09/2023,P6,9108199,"-5,812.03 ","5,812.03 ",2103,Water Rates,1014,Southwell,-20.19 
Nottinghamshire Fire and Rescue Service ,104256,Advanced Demand Side Management Limited,Advanced Demand Side Management Limited,Operational Responses,5,202406,01/09/2023,P6,9108199,"-5,812.03 ","5,812.03 ",2103,Water Rates,1014,Southwell,-19.95 
Nottinghamshire Fire and Rescue Service ,104256,Advanced Demand Side Management Limited,Advanced Demand Side Management Limited,Operational Responses,5,202406,01/09/2023,P6,9108199,"-5,812.03 ","5,812.03 ",2103,Water Rates,1014,Southwell,17.07 
Nottinghamshire Fire and Rescue Service ,104256,Advanced Demand Side Management Limited,Advanced Demand Side Management Limited,Operational Responses,5,202406,01/09/2023,P6,9108199,"-5,812.03 ","5,812.03 ",2103,Water Rates,1014,Southwell,17.20 
Nottinghamshire Fire and Rescue Service ,104256,Advanced Demand Side Management Limited,Advanced Demand Side Management Limited,Operational Responses,5,202406,01/09/2023,P6,9108199,"-5,812.03 ","5,812.03 ",2103,Water Rates,1014,Southwell,18.18 
Nottinghamshire Fire and Rescue Service ,104256,Advanced Demand Side Management Limited,Advanced Demand Side Management Limited,Operational Responses,5,202406,01/09/2023,P6,9108199,"-5,812.03 ","5,812.03 ",2103,Water Rates,1014,Southwell,38.62 
Nottinghamshire Fire and Rescue Service ,104256,Advanced Demand Side Management Limited,Advanced Demand Side Management Limited,Operational Responses,5,202406,01/09/2023,P6,9108199,"-5,812.03 ","5,812.03 ",2103,Water Rates,1015,Collingham,23.87 
Nottinghamshire Fire and Rescue Service ,104256,Advanced Demand Side Management Limited,Advanced Demand Side Management Limited,Operational Responses,5,202406,01/09/2023,P6,9108199,"-5,812.03 ","5,812.03 ",2103,Water Rates,1016,Newark,2.68 
Nottinghamshire Fire and Rescue Service ,104256,Advanced Demand Side Management Limited,Advanced Demand Side Management Limited,Operational Responses,5,202406,01/09/2023,P6,9108199,"-5,812.03 ","5,812.03 ",2103,Water Rates,1016,Newark,97.69 
Nottinghamshire Fire and Rescue Service ,104256,Advanced Demand Side Management Limited,Advanced Demand Side Management Limited,Operational Responses,5,202406,01/09/2023,P6,9108199,"-5,812.03 ","5,812.03 ",2103,Water Rates,1017,Bingham,-17.97 
Nottinghamshire Fire and Rescue Service ,104256,Advanced Demand Side Management Limited,Advanced Demand Side Management Limited,Operational Responses,5,202406,01/09/2023,P6,9108199,"-5,812.03 ","5,812.03 ",2103,Water Rates,1017,Bingham,-16.63 
Nottinghamshire Fire and Rescue Service ,104256,Advanced Demand Side Management Limited,Advanced Demand Side Management Limited,Operational Responses,5,202406,01/09/2023,P6,9108199,"-5,812.03 ","5,812.03 ",2103,Water Rates,1017,Bingham,-16.33 
Nottinghamshire Fire and Rescue Service ,104256,Advanced Demand Side Management Limited,Advanced Demand Side Management Limited,Operational Responses,5,202406,01/09/2023,P6,9108199,"-5,812.03 ","5,812.03 ",2103,Water Rates,1017,Bingham,-15.84 
Nottinghamshire Fire and Rescue Service ,104256,Advanced Demand Side Management Limited,Advanced Demand Side Management Limited,Operational Responses,5,202406,01/09/2023,P6,9108199,"-5,812.03 ","5,812.03 ",2103,Water Rates,1017,Bingham,-15.32 
Nottinghamshire Fire and Rescue Service ,104256,Advanced Demand Side Management Limited,Advanced Demand Side Management Limited,Operational Responses,5,202406,01/09/2023,P6,9108199,"-5,812.03 ","5,812.03 ",2103,Water Rates,1017,Bingham,-14.77 
Nottinghamshire Fire and Rescue Service ,104256,Advanced Demand Side Management Limited,Advanced Demand Side Management Limited,Operational Responses,5,202406,01/09/2023,P6,9108199,"-5,812.03 ","5,812.03 ",2103,Water Rates,1017,Bingham,-14.54 
Nottinghamshire Fire and Rescue Service ,104256,Advanced Demand Side Management Limited,Advanced Demand Side Management Limited,Operational Responses,5,202406,01/09/2023,P6,9108199,"-5,812.03 ","5,812.03 ",2103,Water Rates,1017,Bingham,-7.27 
Nottinghamshire Fire and Rescue Service ,104256,Advanced Demand Side Management Limited,Advanced Demand Side Management Limited,Operational Responses,5,202406,01/09/2023,P6,9108199,"-5,812.03 ","5,812.03 ",2103,Water Rates,1017,Bingham,-4.90 
Nottinghamshire Fire and Rescue Service ,104256,Advanced Demand Side Management Limited,Advanced Demand Side Management Limited,Operational Responses,5,202406,01/09/2023,P6,9108199,"-5,812.03 ","5,812.03 ",2103,Water Rates,1017,Bingham,5.02 
Nottinghamshire Fire and Rescue Service ,104256,Advanced Demand Side Management Limited,Advanced Demand Side Management Limited,Operational Responses,5,202406,01/09/2023,P6,9108199,"-5,812.03 ","5,812.03 ",2103,Water Rates,1017,Bingham,9.73 
Nottinghamshire Fire and Rescue Service ,104256,Advanced Demand Side Management Limited,Advanced Demand Side Management Limited,Operational Responses,5,202406,01/09/2023,P6,9108199,"-5,812.03 ","5,812.03 ",2103,Water Rates,1017,Bingham,10.04 
Nottinghamshire Fire and Rescue Service ,104256,Advanced Demand Side Management Limited,Advanced Demand Side Management Limited,Operational Responses,5,202406,01/09/2023,P6,9108199,"-5,812.03 ","5,812.03 ",2103,Water Rates,1017,Bingham,11.12 
Nottinghamshire Fire and Rescue Service ,104256,Advanced Demand Side Management Limited,Advanced Demand Side Management Limited,Operational Responses,5,202406,01/09/2023,P6,9108199,"-5,812.03 ","5,812.03 ",2103,Water Rates,1017,Bingham,11.70 
Nottinghamshire Fire and Rescue Service ,104256,Advanced Demand Side Management Limited,Advanced Demand Side Management Limited,Operational Responses,5,202406,01/09/2023,P6,9108199,"-5,812.03 ","5,812.03 ",2103,Water Rates,1017,Bingham,12.32 
Nottinghamshire Fire and Rescue Service ,104256,Advanced Demand Side Management Limited,Advanced Demand Side Management Limited,Operational Responses,5,202406,01/09/2023,P6,9108199,"-5,812.03 ","5,812.03 ",2103,Water Rates,1017,Bingham,12.73 
Nottinghamshire Fire and Rescue Service ,104256,Advanced Demand Side Management Limited,Advanced Demand Side Management Limited,Operational Responses,5,202406,01/09/2023,P6,9108199,"-5,812.03 ","5,812.03 ",2103,Water Rates,1019,West Bridgford,217.28 
Nottinghamshire Fire and Rescue Service ,104256,Advanced Demand Side Management Limited,Advanced Demand Side Management Limited,Operational Responses,5,202406,01/09/2023,P6,9108199,"-5,812.03 ","5,812.03 ",2103,Water Rates,1020,Stockhill,13.21 
Nottinghamshire Fire and Rescue Service ,104256,Advanced Demand Side Management Limited,Advanced Demand Side Management Limited,Operational Responses,5,202406,01/09/2023,P6,9108199,"-5,812.03 ","5,812.03 ",2103,Water Rates,1023,Stapleford,48.94 
Nottinghamshire Fire and Rescue Service ,104256,Advanced Demand Side Management Limited,Advanced Demand Side Management Limited,Operational Responses,5,202406,01/09/2023,P6,9108199,"-5,812.03 ","5,812.03 ",2103,Water Rates,1024,Eastwood,21.42 
Nottinghamshire Fire and Rescue Service ,104256,Advanced Demand Side Management Limited,Advanced Demand Side Management Limited,Operational Responses,5,202406,01/09/2023,P6,9108199,"-5,812.03 ","5,812.03 ",2103,Water Rates,1026,Arnold,90.40 
Nottinghamshire Fire and Rescue Service ,104256,Advanced Demand Side Management Limited,Advanced Demand Side Management Limited,Operational Responses,5,202406,01/09/2023,P6,9108199,"-5,812.03 ","5,812.03 ",2103,Water Rates,1027,Carlton,25.33 
Nottinghamshire Fire and Rescue Service ,104256,Advanced Demand Side Management Limited,Advanced Demand Side Management Limited,Operational Responses,5,202406,01/09/2023,P6,9108199,"-5,812.03 ","5,812.03 ",2103,Water Rates,1028,East Leake,2.40 
Nottinghamshire Fire and Rescue Service ,104256,Advanced Demand Side Management Limited,Advanced Demand Side Management Limited,Operational Responses,5,202406,01/09/2023,P6,9108199,"-5,812.03 ","5,812.03 ",2103,Water Rates,1029,Highfields Station,271.92 
Nottinghamshire Fire and Rescue Service ,104256,Advanced Demand Side Management Limited,Advanced Demand Side Management Limited,Management & Support Services,5,202406,01/09/2023,P6,9108199,"-5,812.03 ","5,812.03 ",2103,Water Rates,1030,Service Development Centre,503.30 
Nottinghamshire Fire and Rescue Service ,104256,Advanced Demand Side Management Limited,Advanced Demand Side Management Limited,Management & Support Services,5,202406,01/09/2023,P6,9108199,"-5,812.03 ","5,812.03 ",2103,Water Rates,1035,Headquarters,258.80 
Nottinghamshire Fire and Rescue Service ,104256,Advanced Demand Side Management Limited,Advanced Demand Side Management Limited,Prevention & Education,5,202406,01/09/2023,P6,9108199,"-5,812.03 ","5,812.03 ",2103,Water Rates,1036,Clifton Community Safety Centre,16.43 
Nottinghamshire Fire and Rescue Service ,104256,Advanced Demand Side Management Limited,Advanced Demand Side Management Limited,Operational Responses,5,202406,01/09/2023,P6,9108199,"-5,812.03 ","5,812.03 ",2104,Sewerage and Environmental,1001,Mansfield,23.33 
Nottinghamshire Fire and Rescue Service ,104256,Advanced Demand Side Management Limited,Advanced Demand Side Management Limited,Operational Responses,5,202406,01/09/2023,P6,9108199,"-5,812.03 ","5,812.03 ",2104,Sewerage and Environmental,1001,Mansfield,209.52 
Nottinghamshire Fire and Rescue Service ,104256,Advanced Demand Side Management Limited,Advanced Demand Side Management Limited,Operational Responses,5,202406,01/09/2023,P6,9108199,"-5,812.03 ","5,812.03 ",2104,Sewerage and Environmental,1002,Blidworth,12.23 
Nottinghamshire Fire and Rescue Service ,104256,Advanced Demand Side Management Limited,Advanced Demand Side Management Limited,Operational Responses,5,202406,01/09/2023,P6,9108199,"-5,812.03 ","5,812.03 ",2104,Sewerage and Environmental,1003,London Road,47.42 
Nottinghamshire Fire and Rescue Service ,104256,Advanced Demand Side Management Limited,Advanced Demand Side Management Limited,Operational Responses,5,202406,01/09/2023,P6,9108199,"-5,812.03 ","5,812.03 ",2104,Sewerage and Environmental,1005,Ashfield,91.86 
Nottinghamshire Fire and Rescue Service ,104256,Advanced Demand Side Management Limited,Advanced Demand Side Management Limited,Operational Responses,5,202406,01/09/2023,P6,9108199,"-5,812.03 ","5,812.03 ",2104,Sewerage and Environmental,1006,Edwinstowe,141.30 
Nottinghamshire Fire and Rescue Service ,104256,Advanced Demand Side Management Limited,Advanced Demand Side Management Limited,Operational Responses,5,202406,01/09/2023,P6,9108199,"-5,812.03 ","5,812.03 ",2104,Sewerage and Environmental,1007,Warsop,13.92 
Nottinghamshire Fire and Rescue Service ,104256,Advanced Demand Side Management Limited,Advanced Demand Side Management Limited,Operational Responses,5,202406,01/09/2023,P6,9108199,"-5,812.03 ","5,812.03 ",2104,Sewerage and Environmental,1008,Worksop,233.92 
Nottinghamshire Fire and Rescue Service ,104256,Advanced Demand Side Management Limited,Advanced Demand Side Management Limited,Operational Responses,5,202406,01/09/2023,P6,9108199,"-5,812.03 ","5,812.03 ",2104,Sewerage and Environmental,1010,Harworth,16.73 
Nottinghamshire Fire and Rescue Service ,104256,Advanced Demand Side Management Limited,Advanced Demand Side Management Limited,Operational Responses,5,202406,01/09/2023,P6,9108199,"-5,812.03 ","5,812.03 ",2104,Sewerage and Environmental,1011,Misterton,7.68 
Nottinghamshire Fire and Rescue Service ,104256,Advanced Demand Side Management Limited,Advanced Demand Side Management Limited,Operational Responses,5,202406,01/09/2023,P6,9108199,"-5,812.03 ","5,812.03 ",2104,Sewerage and Environmental,1011,Misterton,41.40 
Nottinghamshire Fire and Rescue Service ,104256,Advanced Demand Side Management Limited,Advanced Demand Side Management Limited,Operational Responses,5,202406,01/09/2023,P6,9108199,"-5,812.03 ","5,812.03 ",2104,Sewerage and Environmental,1012,Retford,27.03 
Nottinghamshire Fire and Rescue Service ,104256,Advanced Demand Side Management Limited,Advanced Demand Side Management Limited,Operational Responses,5,202406,01/09/2023,P6,9108199,"-5,812.03 ","5,812.03 ",2104,Sewerage and Environmental,1012,Retford,106.42 
Nottinghamshire Fire and Rescue Service ,104256,Advanced Demand Side Management Limited,Advanced Demand Side Management Limited,Operational Responses,5,202406,01/09/2023,P6,9108199,"-5,812.03 ","5,812.03 ",2104,Sewerage and Environmental,1014,Southwell,-102.31 
Nottinghamshire Fire and Rescue Service ,104256,Advanced Demand Side Management Limited,Advanced Demand Side Management Limited,Operational Responses,5,202406,01/09/2023,P6,9108199,"-5,812.03 ","5,812.03 ",2104,Sewerage and Environmental,1014,Southwell,-90.31 
Nottinghamshire Fire and Rescue Service ,104256,Advanced Demand Side Management Limited,Advanced Demand Side Management Limited,Operational Responses,5,202406,01/09/2023,P6,9108199,"-5,812.03 ","5,812.03 ",2104,Sewerage and Environmental,1014,Southwell,-90.15 
Nottinghamshire Fire and Rescue Service ,104256,Advanced Demand Side Management Limited,Advanced Demand Side Management Limited,Operational Responses,5,202406,01/09/2023,P6,9108199,"-5,812.03 ","5,812.03 ",2104,Sewerage and Environmental,1014,Southwell,87.88 
Nottinghamshire Fire and Rescue Service ,104256,Advanced Demand Side Management Limited,Advanced Demand Side Management Limited,Operational Responses,5,202406,01/09/2023,P6,9108199,"-5,812.03 ","5,812.03 ",2104,Sewerage and Environmental,1014,Southwell,88.97 
Nottinghamshire Fire and Rescue Service ,104256,Advanced Demand Side Management Limited,Advanced Demand Side Management Limited,Operational Responses,5,202406,01/09/2023,P6,9108199,"-5,812.03 ","5,812.03 ",2104,Sewerage and Environmental,1014,Southwell,91.28 
Nottinghamshire Fire and Rescue Service ,104256,Advanced Demand Side Management Limited,Advanced Demand Side Management Limited,Operational Responses,5,202406,01/09/2023,P6,9108199,"-5,812.03 ","5,812.03 ",2104,Sewerage and Environmental,1014,Southwell,100.11 
Nottinghamshire Fire and Rescue Service ,104256,Advanced Demand Side Management Limited,Advanced Demand Side Management Limited,Operational Responses,5,202406,01/09/2023,P6,9108199,"-5,812.03 ","5,812.03 ",2104,Sewerage and Environmental,1015,Collingham,70.16 
Nottinghamshire Fire and Rescue Service ,104256,Advanced Demand Side Management Limited,Advanced Demand Side Management Limited,Operational Responses,5,202406,01/09/2023,P6,9108199,"-5,812.03 ","5,812.03 ",2104,Sewerage and Environmental,1016,Newark,183.90 
Nottinghamshire Fire and Rescue Service ,104256,Advanced Demand Side Management Limited,Advanced Demand Side Management Limited,Operational Responses,5,202406,01/09/2023,P6,9108199,"-5,812.03 ","5,812.03 ",2104,Sewerage and Environmental,1016,Newark,413.14 
Nottinghamshire Fire and Rescue Service ,104256,Advanced Demand Side Management Limited,Advanced Demand Side Management Limited,Operational Responses,5,202406,01/09/2023,P6,9108199,"-5,812.03 ","5,812.03 ",2104,Sewerage and Environmental,1017,Bingham,-87.94 
Nottinghamshire Fire and Rescue Service ,104256,Advanced Demand Side Management Limited,Advanced Demand Side Management Limited,Operational Responses,5,202406,01/09/2023,P6,9108199,"-5,812.03 ","5,812.03 ",2104,Sewerage and Environmental,1017,Bingham,-87.41 
Nottinghamshire Fire and Rescue Service ,104256,Advanced Demand Side Management Limited,Advanced Demand Side Management Limited,Operational Responses,5,202406,01/09/2023,P6,9108199,"-5,812.03 ","5,812.03 ",2104,Sewerage and Environmental,1017,Bingham,-84.59 
Nottinghamshire Fire and Rescue Service ,104256,Advanced Demand Side Management Limited,Advanced Demand Side Management Limited,Operational Responses,5,202406,01/09/2023,P6,9108199,"-5,812.03 ","5,812.03 ",2104,Sewerage and Environmental,1017,Bingham,-84.22 
Nottinghamshire Fire and Rescue Service ,104256,Advanced Demand Side Management Limited,Advanced Demand Side Management Limited,Operational Responses,5,202406,01/09/2023,P6,9108199,"-5,812.03 ","5,812.03 ",2104,Sewerage and Environmental,1017,Bingham,-82.26 
Nottinghamshire Fire and Rescue Service ,104256,Advanced Demand Side Management Limited,Advanced Demand Side Management Limited,Operational Responses,5,202406,01/09/2023,P6,9108199,"-5,812.03 ","5,812.03 ",2104,Sewerage and Environmental,1017,Bingham,-81.14 
Nottinghamshire Fire and Rescue Service ,104256,Advanced Demand Side Management Limited,Advanced Demand Side Management Limited,Operational Responses,5,202406,01/09/2023,P6,9108199,"-5,812.03 ","5,812.03 ",2104,Sewerage and Environmental,1017,Bingham,-73.26 
Nottinghamshire Fire and Rescue Service ,104256,Advanced Demand Side Management Limited,Advanced Demand Side Management Limited,Operational Responses,5,202406,01/09/2023,P6,9108199,"-5,812.03 ","5,812.03 ",2104,Sewerage and Environmental,1017,Bingham,-73.14 
Nottinghamshire Fire and Rescue Service ,104256,Advanced Demand Side Management Limited,Advanced Demand Side Management Limited,Operational Responses,5,202406,01/09/2023,P6,9108199,"-5,812.03 ","5,812.03 ",2104,Sewerage and Environmental,1017,Bingham,-36.57 
Nottinghamshire Fire and Rescue Service ,104256,Advanced Demand Side Management Limited,Advanced Demand Side Management Limited,Operational Responses,5,202406,01/09/2023,P6,9108199,"-5,812.03 ","5,812.03 ",2104,Sewerage and Environmental,1017,Bingham,35.02 
Nottinghamshire Fire and Rescue Service ,104256,Advanced Demand Side Management Limited,Advanced Demand Side Management Limited,Operational Responses,5,202406,01/09/2023,P6,9108199,"-5,812.03 ","5,812.03 ",2104,Sewerage and Environmental,1017,Bingham,70.04 
Nottinghamshire Fire and Rescue Service ,104256,Advanced Demand Side Management Limited,Advanced Demand Side Management Limited,Operational Responses,5,202406,01/09/2023,P6,9108199,"-5,812.03 ","5,812.03 ",2104,Sewerage and Environmental,1017,Bingham,77.54 
Nottinghamshire Fire and Rescue Service ,104256,Advanced Demand Side Management Limited,Advanced Demand Side Management Limited,Operational Responses,5,202406,01/09/2023,P6,9108199,"-5,812.03 ","5,812.03 ",2104,Sewerage and Environmental,1017,Bingham,81.80 
Nottinghamshire Fire and Rescue Service ,104256,Advanced Demand Side Management Limited,Advanced Demand Side Management Limited,Operational Responses,5,202406,01/09/2023,P6,9108199,"-5,812.03 ","5,812.03 ",2104,Sewerage and Environmental,1017,Bingham,82.59 
Nottinghamshire Fire and Rescue Service ,104256,Advanced Demand Side Management Limited,Advanced Demand Side Management Limited,Operational Responses,5,202406,01/09/2023,P6,9108199,"-5,812.03 ","5,812.03 ",2104,Sewerage and Environmental,1017,Bingham,82.94 
Nottinghamshire Fire and Rescue Service ,104256,Advanced Demand Side Management Limited,Advanced Demand Side Management Limited,Operational Responses,5,202406,01/09/2023,P6,9108199,"-5,812.03 ","5,812.03 ",2104,Sewerage and Environmental,1017,Bingham,85.34 
Nottinghamshire Fire and Rescue Service ,104256,Advanced Demand Side Management Limited,Advanced Demand Side Management Limited,Operational Responses,5,202406,01/09/2023,P6,9108199,"-5,812.03 ","5,812.03 ",2104,Sewerage and Environmental,1019,West Bridgford,327.02 
Nottinghamshire Fire and Rescue Service ,104256,Advanced Demand Side Management Limited,Advanced Demand Side Management Limited,Operational Responses,5,202406,01/09/2023,P6,9108199,"-5,812.03 ","5,812.03 ",2104,Sewerage and Environmental,1020,Stockhill,191.10 
Nottinghamshire Fire and Rescue Service ,104256,Advanced Demand Side Management Limited,Advanced Demand Side Management Limited,Operational Responses,5,202406,01/09/2023,P6,9108199,"-5,812.03 ","5,812.03 ",2104,Sewerage and Environmental,1023,Stapleford,109.46 
Nottinghamshire Fire and Rescue Service ,104256,Advanced Demand Side Management Limited,Advanced Demand Side Management Limited,Operational Responses,5,202406,01/09/2023,P6,9108199,"-5,812.03 ","5,812.03 ",2104,Sewerage and Environmental,1024,Eastwood,51.68 
Nottinghamshire Fire and Rescue Service ,104256,Advanced Demand Side Management Limited,Advanced Demand Side Management Limited,Operational Responses,5,202406,01/09/2023,P6,9108199,"-5,812.03 ","5,812.03 ",2104,Sewerage and Environmental,1026,Arnold,167.18 
Nottinghamshire Fire and Rescue Service ,104256,Advanced Demand Side Management Limited,Advanced Demand Side Management Limited,Operational Responses,5,202406,01/09/2023,P6,9108199,"-5,812.03 ","5,812.03 ",2104,Sewerage and Environmental,1027,Carlton,197.41 
Nottinghamshire Fire and Rescue Service ,104256,Advanced Demand Side Management Limited,Advanced Demand Side Management Limited,Operational Responses,5,202406,01/09/2023,P6,9108199,"-5,812.03 ","5,812.03 ",2104,Sewerage and Environmental,1028,East Leake,2.25 
Nottinghamshire Fire and Rescue Service ,104256,Advanced Demand Side Management Limited,Advanced Demand Side Management Limited,Operational Responses,5,202406,01/09/2023,P6,9108199,"-5,812.03 ","5,812.03 ",2104,Sewerage and Environmental,1029,Highfields Station,181.58 
Nottinghamshire Fire and Rescue Service ,104256,Advanced Demand Side Management Limited,Advanced Demand Side Management Limited,Management & Support Services,5,202406,01/09/2023,P6,9108199,"-5,812.03 ","5,812.03 ",2104,Sewerage and Environmental,1030,Service Development Centre,335.71 
Nottinghamshire Fire and Rescue Service ,104256,Advanced Demand Side Management Limited,Advanced Demand Side Management Limited,Management & Support Services,5,202406,01/09/2023,P6,9108199,"-5,812.03 ","5,812.03 ",2104,Sewerage and Environmental,1035,Headquarters,172.84 
Nottinghamshire Fire and Rescue Service ,104256,Advanced Demand Side Management Limited,Advanced Demand Side Management Limited,Prevention & Education,5,202406,01/09/2023,P6,9108199,"-5,812.03 ","5,812.03 ",2104,Sewerage and Environmental,1036,Clifton Community Safety Centre,65.21 
Nottinghamshire Fire and Rescue Service ,103847,Veolia ES UK Limited,Veolia ES UK Limited,Management & Support Services,5,202406,31/08/2023,P6,9108143,"-1,431.76 ","1,431.76 ",2106,Refuse / Trade Waste Collection,2086,Procurement,"1,193.13 "
Nottinghamshire Fire and Rescue Service ,103847,Veolia ES UK Limited,Veolia ES UK Limited,Operational Responses,5,202406,23/06/2023,P6,9108233,-851.60 ,851.60 ,2106,Refuse / Trade Waste Collection,1029,Highfields Station,709.67 
Nottinghamshire Fire and Rescue Service ,101512,Frank Key Group Merchants (Nottingham) Ltd,Frank Key Group Merchants (Nottingham) Ltd,Operational Responses,1,202406,25/09/2023,P6,9108367,-282.00 ,282.00 ,2106,Refuse / Trade Waste Collection,1026,Arnold,235.00 
Nottinghamshire Fire and Rescue Service ,100557,NCC Sundry Debtors,NCC Sundry Debtors,Operational Responses,4,202406,01/09/2023,P6,9108210,"-1,980.19 ","1,980.19 ",2201,Grounds Maintenance,1001,Mansfield,38.10 
Nottinghamshire Fire and Rescue Service ,100557,NCC Sundry Debtors,NCC Sundry Debtors,Operational Responses,4,202406,01/09/2023,P6,9108210,"-1,980.19 ","1,980.19 ",2201,Grounds Maintenance,1002,Blidworth,67.84 
Nottinghamshire Fire and Rescue Service ,100557,NCC Sundry Debtors,NCC Sundry Debtors,Operational Responses,4,202406,01/09/2023,P6,9108210,"-1,980.19 ","1,980.19 ",2201,Grounds Maintenance,1003,London Road,46.25 
Nottinghamshire Fire and Rescue Service ,100557,NCC Sundry Debtors,NCC Sundry Debtors,Operational Responses,4,202406,01/09/2023,P6,9108210,"-1,980.19 ","1,980.19 ",2201,Grounds Maintenance,1005,Ashfield,218.75 
Nottinghamshire Fire and Rescue Service ,100557,NCC Sundry Debtors,NCC Sundry Debtors,Operational Responses,4,202406,01/09/2023,P6,9108210,"-1,980.19 ","1,980.19 ",2201,Grounds Maintenance,1006,Edwinstowe,45.28 
Nottinghamshire Fire and Rescue Service ,100557,NCC Sundry Debtors,NCC Sundry Debtors,Operational Responses,4,202406,01/09/2023,P6,9108210,"-1,980.19 ","1,980.19 ",2201,Grounds Maintenance,1007,Warsop,7.50 
Nottinghamshire Fire and Rescue Service ,100557,NCC Sundry Debtors,NCC Sundry Debtors,Operational Responses,4,202406,01/09/2023,P6,9108210,"-1,980.19 ","1,980.19 ",2201,Grounds Maintenance,1008,Worksop,45.85 
Nottinghamshire Fire and Rescue Service ,100557,NCC Sundry Debtors,NCC Sundry Debtors,Operational Responses,4,202406,01/09/2023,P6,9108210,"-1,980.19 ","1,980.19 ",2201,Grounds Maintenance,1010,Harworth,44.25 
Nottinghamshire Fire and Rescue Service ,100557,NCC Sundry Debtors,NCC Sundry Debtors,Operational Responses,4,202406,01/09/2023,P6,9108210,"-1,980.19 ","1,980.19 ",2201,Grounds Maintenance,1011,Misterton,39.50 
Nottinghamshire Fire and Rescue Service ,100557,NCC Sundry Debtors,NCC Sundry Debtors,Operational Responses,4,202406,01/09/2023,P6,9108210,"-1,980.19 ","1,980.19 ",2201,Grounds Maintenance,1012,Retford,26.76 
Nottinghamshire Fire and Rescue Service ,100557,NCC Sundry Debtors,NCC Sundry Debtors,Operational Responses,4,202406,01/09/2023,P6,9108210,"-1,980.19 ","1,980.19 ",2201,Grounds Maintenance,1013,Tuxford,30.00 
Nottinghamshire Fire and Rescue Service ,100557,NCC Sundry Debtors,NCC Sundry Debtors,Operational Responses,4,202406,01/09/2023,P6,9108210,"-1,980.19 ","1,980.19 ",2201,Grounds Maintenance,1014,Southwell,36.13 
Nottinghamshire Fire and Rescue Service ,100557,NCC Sundry Debtors,NCC Sundry Debtors,Operational Responses,4,202406,01/09/2023,P6,9108210,"-1,980.19 ","1,980.19 ",2201,Grounds Maintenance,1015,Collingham,40.80 
Nottinghamshire Fire and Rescue Service ,100557,NCC Sundry Debtors,NCC Sundry Debtors,Operational Responses,4,202406,01/09/2023,P6,9108210,"-1,980.19 ","1,980.19 ",2201,Grounds Maintenance,1016,Newark,40.00 
Nottinghamshire Fire and Rescue Service ,100557,NCC Sundry Debtors,NCC Sundry Debtors,Operational Responses,4,202406,01/09/2023,P6,9108210,"-1,980.19 ","1,980.19 ",2201,Grounds Maintenance,1017,Bingham,64.08 
Nottinghamshire Fire and Rescue Service ,100557,NCC Sundry Debtors,NCC Sundry Debtors,Operational Responses,4,202406,01/09/2023,P6,9108210,"-1,980.19 ","1,980.19 ",2201,Grounds Maintenance,1019,West Bridgford,84.48 
Nottinghamshire Fire and Rescue Service ,100557,NCC Sundry Debtors,NCC Sundry Debtors,Operational Responses,4,202406,01/09/2023,P6,9108210,"-1,980.19 ","1,980.19 ",2201,Grounds Maintenance,1020,Stockhill,216.10 
Nottinghamshire Fire and Rescue Service ,100557,NCC Sundry Debtors,NCC Sundry Debtors,Operational Responses,4,202406,01/09/2023,P6,9108210,"-1,980.19 ","1,980.19 ",2201,Grounds Maintenance,1023,Stapleford,80.50 
Nottinghamshire Fire and Rescue Service ,100557,NCC Sundry Debtors,NCC Sundry Debtors,Operational Responses,4,202406,01/09/2023,P6,9108210,"-1,980.19 ","1,980.19 ",2201,Grounds Maintenance,1024,Eastwood,28.75 
Nottinghamshire Fire and Rescue Service ,100557,NCC Sundry Debtors,NCC Sundry Debtors,Operational Responses,4,202406,01/09/2023,P6,9108210,"-1,980.19 ","1,980.19 ",2201,Grounds Maintenance,1026,Arnold,22.08 
Nottinghamshire Fire and Rescue Service ,100557,NCC Sundry Debtors,NCC Sundry Debtors,Operational Responses,4,202406,01/09/2023,P6,9108210,"-1,980.19 ","1,980.19 ",2201,Grounds Maintenance,1027,Carlton,39.58 
Nottinghamshire Fire and Rescue Service ,100557,NCC Sundry Debtors,NCC Sundry Debtors,Operational Responses,4,202406,01/09/2023,P6,9108210,"-1,980.19 ","1,980.19 ",2201,Grounds Maintenance,1028,East Leake,133.75 
Nottinghamshire Fire and Rescue Service ,100557,NCC Sundry Debtors,NCC Sundry Debtors,Operational Responses,4,202406,01/09/2023,P6,9108210,"-1,980.19 ","1,980.19 ",2201,Grounds Maintenance,1029,Highfields Station,97.08 
Nottinghamshire Fire and Rescue Service ,100557,NCC Sundry Debtors,NCC Sundry Debtors,Management & Support Services,4,202406,01/09/2023,P6,9108210,"-1,980.19 ","1,980.19 ",2201,Grounds Maintenance,1030,Service Development Centre,156.75 
Nottinghamshire Fire and Rescue Service ,100557,NCC Sundry Debtors,NCC Sundry Debtors,Operational Responses,4,202406,01/09/2023,P6,9107989,-864.00 ,864.00 ,2204,Contract Cleaning,1001,Mansfield,30.00 
Nottinghamshire Fire and Rescue Service ,100557,NCC Sundry Debtors,NCC Sundry Debtors,Operational Responses,4,202406,01/09/2023,P6,9107989,-864.00 ,864.00 ,2204,Contract Cleaning,1002,Blidworth,30.00 
Nottinghamshire Fire and Rescue Service ,100557,NCC Sundry Debtors,NCC Sundry Debtors,Operational Responses,4,202406,01/09/2023,P6,9107989,-864.00 ,864.00 ,2204,Contract Cleaning,1003,London Road,30.00 
Nottinghamshire Fire and Rescue Service ,100557,NCC Sundry Debtors,NCC Sundry Debtors,Operational Responses,4,202406,01/09/2023,P6,9107989,-864.00 ,864.00 ,2204,Contract Cleaning,1005,Ashfield,30.00 
Nottinghamshire Fire and Rescue Service ,100557,NCC Sundry Debtors,NCC Sundry Debtors,Operational Responses,4,202406,01/09/2023,P6,9107989,-864.00 ,864.00 ,2204,Contract Cleaning,1006,Edwinstowe,30.00 
Nottinghamshire Fire and Rescue Service ,100557,NCC Sundry Debtors,NCC Sundry Debtors,Operational Responses,4,202406,01/09/2023,P6,9107989,-864.00 ,864.00 ,2204,Contract Cleaning,1007,Warsop,30.00 
Nottinghamshire Fire and Rescue Service ,100557,NCC Sundry Debtors,NCC Sundry Debtors,Operational Responses,4,202406,01/09/2023,P6,9107989,-864.00 ,864.00 ,2204,Contract Cleaning,1008,Worksop,30.00 
Nottinghamshire Fire and Rescue Service ,100557,NCC Sundry Debtors,NCC Sundry Debtors,Operational Responses,4,202406,01/09/2023,P6,9107989,-864.00 ,864.00 ,2204,Contract Cleaning,1010,Harworth,30.00 
Nottinghamshire Fire and Rescue Service ,100557,NCC Sundry Debtors,NCC Sundry Debtors,Operational Responses,4,202406,01/09/2023,P6,9107989,-864.00 ,864.00 ,2204,Contract Cleaning,1011,Misterton,30.00 
Nottinghamshire Fire and Rescue Service ,100557,NCC Sundry Debtors,NCC Sundry Debtors,Operational Responses,4,202406,01/09/2023,P6,9107989,-864.00 ,864.00 ,2204,Contract Cleaning,1012,Retford,30.00 
Nottinghamshire Fire and Rescue Service ,100557,NCC Sundry Debtors,NCC Sundry Debtors,Operational Responses,4,202406,01/09/2023,P6,9107989,-864.00 ,864.00 ,2204,Contract Cleaning,1013,Tuxford,30.00 
Nottinghamshire Fire and Rescue Service ,100557,NCC Sundry Debtors,NCC Sundry Debtors,Operational Responses,4,202406,01/09/2023,P6,9107989,-864.00 ,864.00 ,2204,Contract Cleaning,1014,Southwell,30.00 
Nottinghamshire Fire and Rescue Service ,100557,NCC Sundry Debtors,NCC Sundry Debtors,Operational Responses,4,202406,01/09/2023,P6,9107989,-864.00 ,864.00 ,2204,Contract Cleaning,1015,Collingham,30.00 
Nottinghamshire Fire and Rescue Service ,100557,NCC Sundry Debtors,NCC Sundry Debtors,Operational Responses,4,202406,01/09/2023,P6,9107989,-864.00 ,864.00 ,2204,Contract Cleaning,1016,Newark,30.00 
Nottinghamshire Fire and Rescue Service ,100557,NCC Sundry Debtors,NCC Sundry Debtors,Operational Responses,4,202406,01/09/2023,P6,9107989,-864.00 ,864.00 ,2204,Contract Cleaning,1017,Bingham,30.00 
Nottinghamshire Fire and Rescue Service ,100557,NCC Sundry Debtors,NCC Sundry Debtors,Operational Responses,4,202406,01/09/2023,P6,9107989,-864.00 ,864.00 ,2204,Contract Cleaning,1019,West Bridgford,30.00 
Nottinghamshire Fire and Rescue Service ,100557,NCC Sundry Debtors,NCC Sundry Debtors,Operational Responses,4,202406,01/09/2023,P6,9107989,-864.00 ,864.00 ,2204,Contract Cleaning,1020,Stockhill,30.00 
Nottinghamshire Fire and Rescue Service ,100557,NCC Sundry Debtors,NCC Sundry Debtors,Operational Responses,4,202406,01/09/2023,P6,9107989,-864.00 ,864.00 ,2204,Contract Cleaning,1023,Stapleford,30.00 
Nottinghamshire Fire and Rescue Service ,100557,NCC Sundry Debtors,NCC Sundry Debtors,Operational Responses,4,202406,01/09/2023,P6,9107989,-864.00 ,864.00 ,2204,Contract Cleaning,1024,Eastwood,30.00 
Nottinghamshire Fire and Rescue Service ,100557,NCC Sundry Debtors,NCC Sundry Debtors,Operational Responses,4,202406,01/09/2023,P6,9107989,-864.00 ,864.00 ,2204,Contract Cleaning,1026,Arnold,30.00 
Nottinghamshire Fire and Rescue Service ,100557,NCC Sundry Debtors,NCC Sundry Debtors,Operational Responses,4,202406,01/09/2023,P6,9107989,-864.00 ,864.00 ,2204,Contract Cleaning,1027,Carlton,30.00 
Nottinghamshire Fire and Rescue Service ,100557,NCC Sundry Debtors,NCC Sundry Debtors,Operational Responses,4,202406,01/09/2023,P6,9107989,-864.00 ,864.00 ,2204,Contract Cleaning,1028,East Leake,30.00 
Nottinghamshire Fire and Rescue Service ,100557,NCC Sundry Debtors,NCC Sundry Debtors,Operational Responses,4,202406,01/09/2023,P6,9107989,-864.00 ,864.00 ,2204,Contract Cleaning,1029,Highfields Station,30.00 
Nottinghamshire Fire and Rescue Service ,100557,NCC Sundry Debtors,NCC Sundry Debtors,Management & Support Services,4,202406,01/09/2023,P6,9107989,-864.00 ,864.00 ,2204,Contract Cleaning,1030,Service Development Centre,30.00 
Nottinghamshire Fire and Rescue Service ,100557,NCC Sundry Debtors,NCC Sundry Debtors,Operational Responses,4,202406,01/09/2023,P6,9108032,"-39,783.70 ","39,783.70 ",2204,Contract Cleaning,1001,Mansfield,"2,845.17 "
Nottinghamshire Fire and Rescue Service ,100557,NCC Sundry Debtors,NCC Sundry Debtors,Operational Responses,4,202406,01/09/2023,P6,9108032,"-39,783.70 ","39,783.70 ",2204,Contract Cleaning,1002,Blidworth,268.77 
Nottinghamshire Fire and Rescue Service ,100557,NCC Sundry Debtors,NCC Sundry Debtors,Operational Responses,4,202406,01/09/2023,P6,9108032,"-39,783.70 ","39,783.70 ",2204,Contract Cleaning,1003,London Road,"3,037.54 "
Nottinghamshire Fire and Rescue Service ,100557,NCC Sundry Debtors,NCC Sundry Debtors,Operational Responses,4,202406,01/09/2023,P6,9108032,"-39,783.70 ","39,783.70 ",2204,Contract Cleaning,1005,Ashfield,"1,498.54 "
Nottinghamshire Fire and Rescue Service ,100557,NCC Sundry Debtors,NCC Sundry Debtors,Operational Responses,4,202406,01/09/2023,P6,9108032,"-39,783.70 ","39,783.70 ",2204,Contract Cleaning,1006,Edwinstowe,"1,152.27 "
Nottinghamshire Fire and Rescue Service ,100557,NCC Sundry Debtors,NCC Sundry Debtors,Operational Responses,4,202406,01/09/2023,P6,9108032,"-39,783.70 ","39,783.70 ",2204,Contract Cleaning,1007,Warsop,230.29 
Nottinghamshire Fire and Rescue Service ,100557,NCC Sundry Debtors,NCC Sundry Debtors,Operational Responses,4,202406,01/09/2023,P6,9108032,"-39,783.70 ","39,783.70 ",2204,Contract Cleaning,1008,Worksop,"1,883.29 "
Nottinghamshire Fire and Rescue Service ,100557,NCC Sundry Debtors,NCC Sundry Debtors,Operational Responses,4,202406,01/09/2023,P6,9108032,"-39,783.70 ","39,783.70 ",2204,Contract Cleaning,1010,Harworth,422.67 
Nottinghamshire Fire and Rescue Service ,100557,NCC Sundry Debtors,NCC Sundry Debtors,Operational Responses,4,202406,01/09/2023,P6,9108032,"-39,783.70 ","39,783.70 ",2204,Contract Cleaning,1011,Misterton,345.72 
Nottinghamshire Fire and Rescue Service ,100557,NCC Sundry Debtors,NCC Sundry Debtors,Operational Responses,4,202406,01/09/2023,P6,9108032,"-39,783.70 ","39,783.70 ",2204,Contract Cleaning,1012,Retford,"1,921.77 "
Nottinghamshire Fire and Rescue Service ,100557,NCC Sundry Debtors,NCC Sundry Debtors,Operational Responses,4,202406,01/09/2023,P6,9108032,"-39,783.70 ","39,783.70 ",2204,Contract Cleaning,1013,Tuxford,268.77 
Nottinghamshire Fire and Rescue Service ,100557,NCC Sundry Debtors,NCC Sundry Debtors,Operational Responses,4,202406,01/09/2023,P6,9108032,"-39,783.70 ","39,783.70 ",2204,Contract Cleaning,1014,Southwell,384.19 
Nottinghamshire Fire and Rescue Service ,100557,NCC Sundry Debtors,NCC Sundry Debtors,Operational Responses,4,202406,01/09/2023,P6,9108032,"-39,783.70 ","39,783.70 ",2204,Contract Cleaning,1015,Collingham,384.19 
Nottinghamshire Fire and Rescue Service ,100557,NCC Sundry Debtors,NCC Sundry Debtors,Operational Responses,4,202406,01/09/2023,P6,9108032,"-39,783.70 ","39,783.70 ",2204,Contract Cleaning,1016,Newark,"1,498.54 "
Nottinghamshire Fire and Rescue Service ,100557,NCC Sundry Debtors,NCC Sundry Debtors,Operational Responses,4,202406,01/09/2023,P6,9108032,"-39,783.70 ","39,783.70 ",2204,Contract Cleaning,1017,Bingham,268.77 
Nottinghamshire Fire and Rescue Service ,100557,NCC Sundry Debtors,NCC Sundry Debtors,Operational Responses,4,202406,01/09/2023,P6,9108032,"-39,783.70 ","39,783.70 ",2204,Contract Cleaning,1019,West Bridgford,"2,306.52 "
Nottinghamshire Fire and Rescue Service ,100557,NCC Sundry Debtors,NCC Sundry Debtors,Operational Responses,4,202406,01/09/2023,P6,9108032,"-39,783.70 ","39,783.70 ",2204,Contract Cleaning,1020,Stockhill,"1,883.29 "
Nottinghamshire Fire and Rescue Service ,100557,NCC Sundry Debtors,NCC Sundry Debtors,Operational Responses,4,202406,01/09/2023,P6,9108032,"-39,783.70 ","39,783.70 ",2204,Contract Cleaning,1023,Stapleford,615.04 
Nottinghamshire Fire and Rescue Service ,100557,NCC Sundry Debtors,NCC Sundry Debtors,Operational Responses,4,202406,01/09/2023,P6,9108032,"-39,783.70 ","39,783.70 ",2204,Contract Cleaning,1024,Eastwood,422.67 
Nottinghamshire Fire and Rescue Service ,100557,NCC Sundry Debtors,NCC Sundry Debtors,Operational Responses,4,202406,01/09/2023,P6,9108032,"-39,783.70 ","39,783.70 ",2204,Contract Cleaning,1026,Arnold,"1,402.35 "
Nottinghamshire Fire and Rescue Service ,100557,NCC Sundry Debtors,NCC Sundry Debtors,Operational Responses,4,202406,01/09/2023,P6,9108032,"-39,783.70 ","39,783.70 ",2204,Contract Cleaning,1027,Carlton,"2,652.79 "
Nottinghamshire Fire and Rescue Service ,100557,NCC Sundry Debtors,NCC Sundry Debtors,Operational Responses,4,202406,01/09/2023,P6,9108032,"-39,783.70 ","39,783.70 ",2204,Contract Cleaning,1028,East Leake,268.77 
Nottinghamshire Fire and Rescue Service ,100557,NCC Sundry Debtors,NCC Sundry Debtors,Operational Responses,4,202406,01/09/2023,P6,9108032,"-39,783.70 ","39,783.70 ",2204,Contract Cleaning,1029,Highfields Station,"5,075.59 "
Nottinghamshire Fire and Rescue Service ,100557,NCC Sundry Debtors,NCC Sundry Debtors,Management & Support Services,4,202406,01/09/2023,P6,9108032,"-39,783.70 ","39,783.70 ",2204,Contract Cleaning,1030,Service Development Centre,"2,115.57 "
Nottinghamshire Fire and Rescue Service ,100557,NCC Sundry Debtors,NCC Sundry Debtors,Operational Responses,4,202406,01/09/2023,P6,9107988,-848.00 ,848.00 ,2205,Window Cleaning,1001,Mansfield,50.00 
Nottinghamshire Fire and Rescue Service ,100557,NCC Sundry Debtors,NCC Sundry Debtors,Operational Responses,4,202406,01/09/2023,P6,9107988,-848.00 ,848.00 ,2205,Window Cleaning,1002,Blidworth,20.00 
Nottinghamshire Fire and Rescue Service ,100557,NCC Sundry Debtors,NCC Sundry Debtors,Operational Responses,4,202406,01/09/2023,P6,9107988,-848.00 ,848.00 ,2205,Window Cleaning,1003,London Road,41.67 
Nottinghamshire Fire and Rescue Service ,100557,NCC Sundry Debtors,NCC Sundry Debtors,Operational Responses,4,202406,01/09/2023,P6,9107988,-848.00 ,848.00 ,2205,Window Cleaning,1005,Ashfield,33.33 
Nottinghamshire Fire and Rescue Service ,100557,NCC Sundry Debtors,NCC Sundry Debtors,Operational Responses,4,202406,01/09/2023,P6,9107988,-848.00 ,848.00 ,2205,Window Cleaning,1006,Edwinstowe,33.33 
Nottinghamshire Fire and Rescue Service ,100557,NCC Sundry Debtors,NCC Sundry Debtors,Operational Responses,4,202406,01/09/2023,P6,9107988,-848.00 ,848.00 ,2205,Window Cleaning,1007,Warsop,21.67 
Nottinghamshire Fire and Rescue Service ,100557,NCC Sundry Debtors,NCC Sundry Debtors,Operational Responses,4,202406,01/09/2023,P6,9107988,-848.00 ,848.00 ,2205,Window Cleaning,1008,Worksop,20.00 
Nottinghamshire Fire and Rescue Service ,100557,NCC Sundry Debtors,NCC Sundry Debtors,Operational Responses,4,202406,01/09/2023,P6,9107988,-848.00 ,848.00 ,2205,Window Cleaning,1010,Harworth,21.67 
Nottinghamshire Fire and Rescue Service ,100557,NCC Sundry Debtors,NCC Sundry Debtors,Operational Responses,4,202406,01/09/2023,P6,9107988,-848.00 ,848.00 ,2205,Window Cleaning,1011,Misterton,20.00 
Nottinghamshire Fire and Rescue Service ,100557,NCC Sundry Debtors,NCC Sundry Debtors,Operational Responses,4,202406,01/09/2023,P6,9107988,-848.00 ,848.00 ,2205,Window Cleaning,1012,Retford,50.00 
Nottinghamshire Fire and Rescue Service ,100557,NCC Sundry Debtors,NCC Sundry Debtors,Operational Responses,4,202406,01/09/2023,P6,9107988,-848.00 ,848.00 ,2205,Window Cleaning,1013,Tuxford,18.33 
Nottinghamshire Fire and Rescue Service ,100557,NCC Sundry Debtors,NCC Sundry Debtors,Operational Responses,4,202406,01/09/2023,P6,9107988,-848.00 ,848.00 ,2205,Window Cleaning,1014,Southwell,16.67 
Nottinghamshire Fire and Rescue Service ,100557,NCC Sundry Debtors,NCC Sundry Debtors,Operational Responses,4,202406,01/09/2023,P6,9107988,-848.00 ,848.00 ,2205,Window Cleaning,1015,Collingham,18.33 
Nottinghamshire Fire and Rescue Service ,100557,NCC Sundry Debtors,NCC Sundry Debtors,Operational Responses,4,202406,01/09/2023,P6,9107988,-848.00 ,848.00 ,2205,Window Cleaning,1016,Newark,25.00 
Nottinghamshire Fire and Rescue Service ,100557,NCC Sundry Debtors,NCC Sundry Debtors,Operational Responses,4,202406,01/09/2023,P6,9107988,-848.00 ,848.00 ,2205,Window Cleaning,1017,Bingham,16.67 
Nottinghamshire Fire and Rescue Service ,100557,NCC Sundry Debtors,NCC Sundry Debtors,Operational Responses,4,202406,01/09/2023,P6,9107988,-848.00 ,848.00 ,2205,Window Cleaning,1019,West Bridgford,50.00 
Nottinghamshire Fire and Rescue Service ,100557,NCC Sundry Debtors,NCC Sundry Debtors,Operational Responses,4,202406,01/09/2023,P6,9107988,-848.00 ,848.00 ,2205,Window Cleaning,1020,Stockhill,50.00 
Nottinghamshire Fire and Rescue Service ,100557,NCC Sundry Debtors,NCC Sundry Debtors,Operational Responses,4,202406,01/09/2023,P6,9107988,-848.00 ,848.00 ,2205,Window Cleaning,1023,Stapleford,18.33 
Nottinghamshire Fire and Rescue Service ,100557,NCC Sundry Debtors,NCC Sundry Debtors,Operational Responses,4,202406,01/09/2023,P6,9107988,-848.00 ,848.00 ,2205,Window Cleaning,1024,Eastwood,20.00 
Nottinghamshire Fire and Rescue Service ,100557,NCC Sundry Debtors,NCC Sundry Debtors,Operational Responses,4,202406,01/09/2023,P6,9107988,-848.00 ,848.00 ,2205,Window Cleaning,1026,Arnold,25.00 
Nottinghamshire Fire and Rescue Service ,100557,NCC Sundry Debtors,NCC Sundry Debtors,Operational Responses,4,202406,01/09/2023,P6,9107988,-848.00 ,848.00 ,2205,Window Cleaning,1027,Carlton,33.33 
Nottinghamshire Fire and Rescue Service ,100557,NCC Sundry Debtors,NCC Sundry Debtors,Operational Responses,4,202406,01/09/2023,P6,9107988,-848.00 ,848.00 ,2205,Window Cleaning,1028,East Leake,16.67 
Nottinghamshire Fire and Rescue Service ,100557,NCC Sundry Debtors,NCC Sundry Debtors,Operational Responses,4,202406,01/09/2023,P6,9107988,-848.00 ,848.00 ,2205,Window Cleaning,1029,Highfields Station,66.67 
Nottinghamshire Fire and Rescue Service ,100557,NCC Sundry Debtors,NCC Sundry Debtors,Management & Support Services,4,202406,01/09/2023,P6,9107988,-848.00 ,848.00 ,2205,Window Cleaning,1030,Service Development Centre,20.00 
Nottinghamshire Fire and Rescue Service ,103943,Teletrac Navman (UK) Limited,Teletrac Navman (UK) Limited,Management & Support Services,5,202406,01/09/2023,P6,9107998,"-1,071.96 ","1,071.96 ",3100,Fleet Maintenance - Planned,2084,Engineering,893.30 
Nottinghamshire Fire and Rescue Service ,101100,Angloco Limited,Angloco Limited,Management & Support Services,1,202406,29/07/2023,P6,9108295,"-15,956.82 ","15,956.82 ",3100,Fleet Maintenance - Planned,2084,Engineering,"13,297.35 "
Nottinghamshire Fire and Rescue Service ,103820,VIA East Midlands Ltd,VIA East Midlands Ltd,Management & Support Services,5,202406,17/08/2023,P6,9108382,"-10,870.95 ","10,870.95 ",3100,Fleet Maintenance - Planned,2084,Engineering,"9,106.06 "
Nottinghamshire Fire and Rescue Service ,103820,VIA East Midlands Ltd,VIA East Midlands Ltd,Management & Support Services,5,202406,21/08/2023,P6,9108385,"-9,474.25 ","9,474.25 ",3100,Fleet Maintenance - Planned,2084,Engineering,"7,913.98 "
Nottinghamshire Fire and Rescue Service ,103820,VIA East Midlands Ltd,VIA East Midlands Ltd,Management & Support Services,5,202406,23/08/2023,P6,9108386,"-6,331.92 ","6,331.92 ",3100,Fleet Maintenance - Planned,2084,Engineering,"5,304.76 "
Nottinghamshire Fire and Rescue Service ,101100,Angloco Limited,Angloco Limited,Management & Support Services,1,202406,31/08/2023,P6,9108213,"-1,166.83 ","1,166.83 ",3102,Vehicle Maintenance Outsourced,2084,Engineering,972.36 
Nottinghamshire Fire and Rescue Service ,102228,Keltruck Limited,Keltruck Limited,Management & Support Services,1,202406,12/07/2023,P6,9108317,-432.00 ,432.00 ,3102,Vehicle Maintenance Outsourced,2084,Engineering,360.00 
Nottinghamshire Fire and Rescue Service ,102228,Keltruck Limited,Keltruck Limited,Management & Support Services,1,202406,18/08/2023,P6,9108318,"-2,161.00 ","2,161.00 ",3102,Vehicle Maintenance Outsourced,2084,Engineering,"1,800.83 "
Nottinghamshire Fire and Rescue Service ,101100,Angloco Limited,Angloco Limited,Management & Support Services,1,202406,31/08/2023,P6,9108379,"-1,691.23 ","1,691.23 ",3102,Vehicle Maintenance Outsourced,2084,Engineering,"1,409.36 "
Nottinghamshire Fire and Rescue Service ,102951,Logistics UK,Logistics UK,Management & Support Services,5,202406,22/06/2023,P6,9108267,"-3,618.89 ","3,618.89 ",3103,Fleet Maintenance - Unplanned,2084,Engineering,"3,015.74 "
Nottinghamshire Fire and Rescue Service ,103820,VIA East Midlands Ltd,VIA East Midlands Ltd,Management & Support Services,5,202406,18/05/2023,P6,9108374,"-13,940.52 ","13,940.52 ",3103,Fleet Maintenance - Unplanned,2084,Engineering,"11,617.10 "
Nottinghamshire Fire and Rescue Service ,103820,VIA East Midlands Ltd,VIA East Midlands Ltd,Management & Support Services,5,202406,17/09/2023,P6,9108381,"-31,778.89 ","31,778.89 ",3103,Fleet Maintenance - Unplanned,2084,Engineering,"26,482.41 "
Nottinghamshire Fire and Rescue Service ,103820,VIA East Midlands Ltd,VIA East Midlands Ltd,Management & Support Services,5,202406,23/08/2023,P6,9108383,"-26,277.95 ","26,277.95 ",3103,Fleet Maintenance - Unplanned,2084,Engineering,"21,898.29 "
Nottinghamshire Fire and Rescue Service ,103820,VIA East Midlands Ltd,VIA East Midlands Ltd,Management & Support Services,5,202406,17/08/2023,P6,9108384,"-2,637.24 ","2,637.24 ",3103,Fleet Maintenance - Unplanned,2084,Engineering,"2,197.70 "
Nottinghamshire Fire and Rescue Service ,103820,VIA East Midlands Ltd,VIA East Midlands Ltd,Management & Support Services,5,202406,21/08/2023,P6,9108387,"-6,036.18 ","6,036.18 ",3103,Fleet Maintenance - Unplanned,2084,Engineering,"5,030.15 "
Nottinghamshire Fire and Rescue Service ,103820,VIA East Midlands Ltd,VIA East Midlands Ltd,Management & Support Services,5,202406,23/08/2023,P6,9108380,"-1,657.26 ","1,657.26 ",3104,Fleet - Accident Repairs,2084,Engineering,"1,381.05 "
Nottinghamshire Fire and Rescue Service ,102558,Merridale Ltd,Merridale Ltd,Management & Support Services,1,202406,06/09/2023,P6,9108053,-326.46 ,326.46 ,3200,Fuel - Vehicle,2084,Engineering,272.05 
Nottinghamshire Fire and Rescue Service ,103766,CERTAS,CERTAS,Operational Responses,5,202406,01/09/2023,P6,9108107,"-4,600.52 ","4,600.52 ",3200,Fuel - Vehicle,1008,Worksop,"3,833.77 "
Nottinghamshire Fire and Rescue Service ,103766,CERTAS,CERTAS,Operational Responses,5,202406,31/08/2023,P6,9108108,"-2,397.50 ","2,397.50 ",3200,Fuel - Vehicle,1012,Retford,"1,997.92 "
Nottinghamshire Fire and Rescue Service ,103766,CERTAS,CERTAS,Operational Responses,5,202406,01/09/2023,P6,9108109,"-2,249.16 ","2,249.16 ",3200,Fuel - Vehicle,1019,West Bridgford,"1,874.30 "
Nottinghamshire Fire and Rescue Service ,103766,CERTAS,CERTAS,Operational Responses,5,202406,31/08/2023,P6,9108110,"-6,207.07 ","6,207.07 ",3200,Fuel - Vehicle,1020,Stockhill,"5,172.56 "
Nottinghamshire Fire and Rescue Service ,103766,CERTAS,CERTAS,Operational Responses,5,202406,01/09/2023,P6,9108111,"-2,996.88 ","2,996.88 ",3200,Fuel - Vehicle,1029,Highfields Station,"2,497.40 "
Nottinghamshire Fire and Rescue Service ,103766,CERTAS,CERTAS,Operational Responses,5,202406,31/08/2023,P6,9108112,"-10,609.32 ","10,609.32 ",3200,Fuel - Vehicle,1006,Edwinstowe,"8,841.10 "
Nottinghamshire Fire and Rescue Service ,103766,CERTAS,CERTAS,Operational Responses,5,202406,29/08/2023,P6,9108125,"-12,232.64 ","12,232.64 ",3200,Fuel - Vehicle,1016,Newark,"10,193.87 "
Nottinghamshire Fire and Rescue Service ,103766,CERTAS,CERTAS,Operational Responses,5,202406,29/08/2023,P6,9108126,"-12,911.15 ","12,911.15 ",3200,Fuel - Vehicle,1003,London Road,"10,759.29 "
Nottinghamshire Fire and Rescue Service ,103766,CERTAS,CERTAS,Operational Responses,5,202406,17/08/2023,P6,9108127,"-11,769.66 ","11,769.66 ",3200,Fuel - Vehicle,1005,Ashfield,"9,808.05 "
Nottinghamshire Fire and Rescue Service ,103766,CERTAS,CERTAS,Operational Responses,5,202406,11/09/2023,P6,9108235,"-10,601.47 ","10,601.47 ",3200,Fuel - Vehicle,1001,Mansfield,"8,834.56 "
Nottinghamshire Fire and Rescue Service ,103766,CERTAS,CERTAS,Operational Responses,5,202406,11/09/2023,P6,9108236,-770.34 ,770.34 ,3200,Fuel - Vehicle,1011,Misterton,641.95 
Nottinghamshire Fire and Rescue Service ,103766,CERTAS,CERTAS,Operational Responses,5,202406,29/08/2023,P6,9108284,"-2,968.08 ","2,968.08 ",3200,Fuel - Vehicle,1026,Arnold,"2,473.40 "
Nottinghamshire Fire and Rescue Service ,103942,The Lodge Tyre Co. Limited,The Lodge Tyre Co. Limited,Management & Support Services,5,202406,31/08/2023,P6,9108212,"-3,448.67 ","3,448.67 ",3202,Tyres,2084,Engineering,"2,873.91 "
Nottinghamshire Fire and Rescue Service ,103942,The Lodge Tyre Co. Limited,The Lodge Tyre Co. Limited,Management & Support Services,5,202406,31/07/2023,P6,9108307,"-2,255.60 ","2,255.60 ",3202,Tyres,2084,Engineering,"1,879.68 "
Nottinghamshire Fire and Rescue Service ,100321,Drivercheck Ltd,Drivercheck Ltd,Management & Support Services,1,202406,31/08/2023,P6,9108211,-752.40 ,752.40 ,3203,Motor Tax / Licenses,2084,Engineering,627.00 
Nottinghamshire Fire and Rescue Service ,104196,Central Cars Nottingham Limited,Central Cars Nottingham Limited,Management & Support Services,5,202406,21/08/2023,P6,9107967,-358.20 ,358.20 ,3504,Public Transport,2054,Equalities Team,298.50 
Nottinghamshire Fire and Rescue Service ,104196,Central Cars Nottingham Limited,Central Cars Nottingham Limited,Management & Support Services,5,202406,11/09/2023,P6,9108287,-390.00 ,390.00 ,3504,Public Transport,2054,Equalities Team,325.00 
Nottinghamshire Fire and Rescue Service ,104196,Central Cars Nottingham Limited,Central Cars Nottingham Limited,Management & Support Services,5,202406,18/09/2023,P6,9108288,-288.00 ,288.00 ,3504,Public Transport,2054,Equalities Team,240.00 
Nottinghamshire Fire and Rescue Service ,102307,Weber Rescue Uk Ltd,Weber Rescue Uk Ltd,Management & Support Services,1,202406,13/09/2023,P6,9108061,"-1,138.20 ","1,138.20 ",4000,Operational Equipment Purchase,2084,Engineering,84.50 
Nottinghamshire Fire and Rescue Service ,102307,Weber Rescue Uk Ltd,Weber Rescue Uk Ltd,Management & Support Services,1,202406,13/09/2023,P6,9108061,"-1,138.20 ","1,138.20 ",4000,Operational Equipment Purchase,2084,Engineering,864.00 
Nottinghamshire Fire and Rescue Service ,102307,Weber Rescue Uk Ltd,Weber Rescue Uk Ltd,Management & Support Services,1,202406,13/09/2023,P6,9108069,"-9,578.40 ","9,578.40 ",4000,Operational Equipment Purchase,2084,Engineering,"7,982.00 "
Nottinghamshire Fire and Rescue Service ,103443,Terberg DTS UK Limited,Terberg DTS UK Limited,Management & Support Services,5,202406,14/09/2023,P6,9108095,-448.73 ,448.73 ,4000,Operational Equipment Purchase,2084,Engineering,373.94 
Nottinghamshire Fire and Rescue Service ,103443,Terberg DTS UK Limited,Terberg DTS UK Limited,Management & Support Services,5,202406,14/09/2023,P6,9108096,"-1,105.71 ","1,105.71 ",4000,Operational Equipment Purchase,2084,Engineering,921.43 
Nottinghamshire Fire and Rescue Service ,103443,Terberg DTS UK Limited,Terberg DTS UK Limited,Management & Support Services,5,202406,14/09/2023,P6,9108097,"-1,160.37 ","1,160.37 ",4000,Operational Equipment Purchase,2084,Engineering,966.98 
Nottinghamshire Fire and Rescue Service ,101890,Survitec Service & Distribution Ltd,Survitec Service & Distribution Ltd,Management & Support Services,1,202406,18/09/2023,P6,9108219,-950.86 ,950.86 ,4000,Operational Equipment Purchase,2084,Engineering,792.39 
Nottinghamshire Fire and Rescue Service ,100408,Central Marine Services Ltd,Central Marine Services Ltd,Management & Support Services,1,202406,04/05/2023,P6,9108290,-299.05 ,299.05 ,4000,Operational Equipment Purchase,2084,Engineering,249.21 
Nottinghamshire Fire and Rescue Service ,100408,Central Marine Services Ltd,Central Marine Services Ltd,Management & Support Services,1,202406,13/10/2022,P6,9108291,-380.40 ,380.40 ,4000,Operational Equipment Purchase,2084,Engineering,317.00 
Nottinghamshire Fire and Rescue Service ,103443,Terberg DTS UK Limited,Terberg DTS UK Limited,Management & Support Services,5,202406,26/09/2023,P6,9108296,"-3,198.31 ","3,198.31 ",4000,Operational Equipment Purchase,2084,Engineering,"2,665.26 "
Nottinghamshire Fire and Rescue Service ,103443,Terberg DTS UK Limited,Terberg DTS UK Limited,Management & Support Services,5,202406,26/09/2023,P6,9108319,-266.62 ,266.62 ,4000,Operational Equipment Purchase,2084,Engineering,222.18 
Nottinghamshire Fire and Rescue Service ,103443,Terberg DTS UK Limited,Terberg DTS UK Limited,Management & Support Services,5,202406,26/09/2023,P6,9108320,"-1,061.21 ","1,061.21 ",4000,Operational Equipment Purchase,2084,Engineering,884.35 
Nottinghamshire Fire and Rescue Service ,100408,Central Marine Services Ltd,Central Marine Services Ltd,Management & Support Services,1,202406,26/01/2023,P6,9108330,-384.00 ,384.00 ,4000,Operational Equipment Purchase,2084,Engineering,320.00 
Nottinghamshire Fire and Rescue Service ,103094,Draeger Safety UK Limited,Draeger Safety UK Limited,Management & Support Services,5,202406,01/09/2023,P6,9108001,"-93,704.05 ","93,704.05 ",4002,Breathing Apparatus,2084,Engineering,"78,086.71 "
Nottinghamshire Fire and Rescue Service ,100434,Angus Fire,Angus Fire,Management & Support Services,1,202406,31/08/2023,P6,9108009,"-5,565.00 ","5,565.00 ",4003,Fire Foam,2084,Engineering,"4,637.50 "
Nottinghamshire Fire and Rescue Service ,103443,Terberg DTS UK Limited,Terberg DTS UK Limited,Management & Support Services,5,202406,26/07/2023,P6,9108055,-678.38 ,678.38 ,4007,Equipment Annual Service,2084,Engineering,565.32 
Nottinghamshire Fire and Rescue Service ,103443,Terberg DTS UK Limited,Terberg DTS UK Limited,Management & Support Services,5,202406,17/07/2023,P6,9108220,-730.22 ,730.22 ,4007,Equipment Annual Service,2084,Engineering,608.52 
Nottinghamshire Fire and Rescue Service ,100408,Central Marine Services Ltd,Central Marine Services Ltd,Management & Support Services,1,202406,09/08/2022,P6,9108293,-285.60 ,285.60 ,4008,Equipment Reative Maintenance,2084,Engineering,238.00 
Nottinghamshire Fire and Rescue Service ,103814,Ergo Computing UK,Ergo Computing UK,Management & Support Services,5,202406,15/09/2023,P6,9108241,"-2,796.00 ","2,796.00 ",4100,Computer Hardware/ Software,2097,ICT Service Operations,"2,330.00 "
Nottinghamshire Fire and Rescue Service ,102660,Jigsaw Systems Limited,Jigsaw Systems Limited,Management & Support Services,5,202406,31/08/2023,P6,9108011,"-1,319.94 ","1,319.94 ",4101,Computer Software Maintenance Contracts,2097,ICT Service Operations,"1,099.95 "
Nottinghamshire Fire and Rescue Service ,103935,IT Governance Limited,IT Governance Limited,Management & Support Services,5,202406,05/09/2023,P6,9108012,"-3,090.00 ","3,090.00 ",4101,Computer Software Maintenance Contracts,2097,ICT Service Operations,"2,575.00 "
Nottinghamshire Fire and Rescue Service ,103483,Risual Limited,Risual Limited,Management & Support Services,5,202406,31/08/2023,P6,9108087,-270.00 ,270.00 ,4101,Computer Software Maintenance Contracts,2097,ICT Service Operations,225.00 
Nottinghamshire Fire and Rescue Service ,103873,New Media Warehouse Limited T/A synergy Learning,New Media Warehouse Limited T/A synergy Learning,Management & Support Services,5,202406,07/09/2023,P6,9108088,"-17,040.00 ","17,040.00 ",4101,Computer Software Maintenance Contracts,2097,ICT Service Operations,"14,200.00 "
Nottinghamshire Fire and Rescue Service ,102261,Airwave Solutions Ltd,Airwave Solutions Ltd,Management & Support Services,1,202406,11/09/2023,P6,9108115,-949.78 ,949.78 ,4101,Computer Software Maintenance Contracts,2097,ICT Service Operations,791.49 
Nottinghamshire Fire and Rescue Service ,103483,Risual Limited,Risual Limited,Management & Support Services,5,202406,18/08/2023,P6,9108264,"-16,360.85 ","16,360.85 ",4101,Computer Software Maintenance Contracts,2097,ICT Service Operations,"13,634.04 "
Nottinghamshire Fire and Rescue Service ,103339,Cadline Limited,Cadline Limited,Management & Support Services,5,202406,25/09/2023,P6,9108298,"-1,278.00 ","1,278.00 ",4101,Computer Software Maintenance Contracts,2097,ICT Service Operations,"1,065.00 "
Nottinghamshire Fire and Rescue Service ,103795,Idox Software Ltd,Idox Software Ltd,Management & Support Services,5,202406,26/09/2023,P6,9108299,"-11,498.48 ","11,498.48 ",4101,Computer Software Maintenance Contracts,2097,ICT Service Operations,"9,582.07 "
Nottinghamshire Fire and Rescue Service ,103871,Zoho Corporation Private Limited,Zoho Corporation Private Limited,Management & Support Services,5,202406,23/09/2023,P6,9108347,"-30,448.80 ","30,448.80 ",4101,Computer Software Maintenance Contracts,2097,ICT Service Operations,"25,374.00 "
Nottinghamshire Fire and Rescue Service ,103483,Risual Limited,Risual Limited,Management & Support Services,5,202406,28/09/2023,P6,9108376,-270.00 ,270.00 ,4101,Computer Software Maintenance Contracts,2097,ICT Service Operations,225.00 
Nottinghamshire Fire and Rescue Service ,103344,Bytes Software Services Ltd,Bytes Software Services Ltd,Management & Support Services,5,202406,19/09/2023,P6,9108257,"18,112.78 ","-18,112.78 ",4101,Computer Software Maintenance Contracts,2097,ICT Service Operations,"-11,643.98 "
Nottinghamshire Fire and Rescue Service ,103344,Bytes Software Services Ltd,Bytes Software Services Ltd,Management & Support Services,5,202406,19/09/2023,P6,9108257,"18,112.78 ","-18,112.78 ",4101,Computer Software Maintenance Contracts,2097,ICT Service Operations,"-3,450.00 "
Nottinghamshire Fire and Rescue Service ,103814,Ergo Computing UK,Ergo Computing UK,Management & Support Services,5,202406,12/09/2023,P6,9108085,-461.95 ,461.95 ,4102,Computer Consumables,2096,ICT Service Transformation,384.96 
Nottinghamshire Fire and Rescue Service ,102103,Ricoh Uk Ltd,Ricoh Uk Ltd,Management & Support Services,1,202406,10/07/2023,P6,9108281,"-1,788.00 ","1,788.00 ",4102,Computer Consumables,2097,ICT Service Operations,"1,490.00 "
Nottinghamshire Fire and Rescue Service ,103483,Risual Limited,Risual Limited,Management & Support Services,5,202406,15/09/2023,P6,9108274,"-3,420.00 ","3,420.00 ",4104,Non-Contracted Services - ICT,2096,ICT Service Transformation,"2,850.00 "
Nottinghamshire Fire and Rescue Service ,100289,Home Office,Home Office,Management & Support Services,4,202406,04/08/2023,P6,9107939,"-68,702.81 ","68,702.81 ",4204,FireLink Contract Charges,2097,ICT Service Operations,"57,252.34 "
Nottinghamshire Fire and Rescue Service ,100289,Home Office,Home Office,Management & Support Services,4,202406,07/09/2023,P6,9108209,"-68,503.88 ","68,503.88 ",4204,FireLink Contract Charges,2097,ICT Service Operations,"57,086.57 "
Nottinghamshire Fire and Rescue Service ,100289,Home Office,Home Office,Management & Support Services,4,202406,18/09/2023,P6,9108254,"-68,702.81 ","68,702.81 ",4204,FireLink Contract Charges,2097,ICT Service Operations,"57,252.34 "
Nottinghamshire Fire and Rescue Service ,103092,Daisy Corporate Services Trading Limited,Daisy Corporate Services Trading Limited,Management & Support Services,1,202406,01/09/2023,P6,9108017,"-1,824.83 ","1,824.83 ",4301,Phones - Landline,2096,ICT Service Transformation,"1,520.69 "
Nottinghamshire Fire and Rescue Service ,102420,BT PLC,BT PLC,Management & Support Services,1,202406,08/08/2023,P6,9108242,"-5,432.76 ","5,432.76 ",4301,Phones - Landline,2097,ICT Service Operations,"4,527.30 "
Nottinghamshire Fire and Rescue Service ,102420,BT PLC,BT PLC,Management & Support Services,1,202406,07/09/2023,P6,9108244,"-1,353.70 ","1,353.70 ",4301,Phones - Landline,2097,ICT Service Operations,"1,128.09 "
Nottinghamshire Fire and Rescue Service ,103426,OV Limited,OV Limited,Management & Support Services,5,202406,31/07/2023,P6,9108245,-500.00 ,500.00 ,4302,Phones - Mobiles,2097,ICT Service Operations,500.00 
Nottinghamshire Fire and Rescue Service ,101802,EE,EE,Management & Support Services,1,202406,01/08/2023,P6,9108246,"-4,018.52 ","4,018.52 ",4302,Phones - Mobiles,2097,ICT Service Operations,48.02 
Nottinghamshire Fire and Rescue Service ,101802,EE,EE,Management & Support Services,1,202406,01/08/2023,P6,9108246,"-4,018.52 ","4,018.52 ",4302,Phones - Mobiles,2097,ICT Service Operations,"3,308.75 "
Nottinghamshire Fire and Rescue Service ,101490,Safeglove,Safeglove,Management & Support Services,1,202406,01/09/2023,P6,9108128,-483.19 ,483.19 ,4401,Protective Clothing,2086,Procurement,402.66 
Nottinghamshire Fire and Rescue Service ,102376,Bristol Uniforms Limited,Bristol Uniforms Limited,Management & Support Services,1,202406,11/09/2023,P6,9108285,"-14,231.48 ","14,231.48 ",4402,Uniform and Protectice Clothing Repairs,2086,Procurement,"5,417.79 "
Nottinghamshire Fire and Rescue Service ,102376,Bristol Uniforms Limited,Bristol Uniforms Limited,Management & Support Services,1,202406,11/09/2023,P6,9108285,"-14,231.48 ","14,231.48 ",4403,Laundry and Dry Cleaning,2086,Procurement,"6,441.78 "
Nottinghamshire Fire and Rescue Service ,101929,Selecta UK,Selecta UK,Management & Support Services,1,202406,31/08/2023,P6,9108132,-389.76 ,389.76 ,4524,Drinking Water,1030,Service Development Centre,324.80 
Nottinghamshire Fire and Rescue Service ,104064,Redbrick Print Solutions LLP,Redbrick Print Solutions LLP,Management & Support Services,5,202406,28/08/2023,P6,9107999,-570.00 ,570.00 ,4532,Stationery,2075,Service Support Hub,475.00 
Nottinghamshire Fire and Rescue Service ,101867,Nottinghamshire Police and Crime Commissioner,Nottinghamshire Police and Crime Commissioner,Management & Support Services,4,202406,26/09/2022,P6,9108251,"-3,165.52 ","3,165.52 ",4532,Stationery,2075,Service Support Hub,"3,165.52 "
Nottinghamshire Fire and Rescue Service ,103094,Draeger Safety UK Limited,Draeger Safety UK Limited,Management & Support Services,5,202406,28/08/2023,P6,9107951,-359.36 ,359.36 ,4534,Carriage and Packaging,9999,Default,17.50 
Nottinghamshire Fire and Rescue Service ,102508,Collins Nets Ltd,Collins Nets Ltd,Management & Support Services,1,202406,29/08/2023,P6,9107953,"-1,168.80 ","1,168.80 ",4534,Carriage and Packaging,2086,Procurement,12.00 
Nottinghamshire Fire and Rescue Service ,104201,BlockaboxLimited,BlockaboxLimited,Management & Support Services,5,202406,04/09/2023,P6,9108002,-310.00 ,310.00 ,4534,Carriage and Packaging,9999,Default,10.00 
Nottinghamshire Fire and Rescue Service ,101634,Sigma Security Devices,Sigma Security Devices,Management & Support Services,1,202406,08/09/2023,P6,9108064,-384.00 ,384.00 ,4534,Carriage and Packaging,9999,Default,20.00 
Nottinghamshire Fire and Rescue Service ,100468,Specialised Canvas Group,Specialised Canvas Group,Management & Support Services,1,202406,19/09/2023,P6,9108218,-663.03 ,663.03 ,4534,Carriage and Packaging,2086,Procurement,15.61 
Nottinghamshire Fire and Rescue Service ,100468,Specialised Canvas Group,Specialised Canvas Group,Management & Support Services,1,202406,19/09/2023,P6,9108229,-921.32 ,921.32 ,4534,Carriage and Packaging,2086,Procurement,24.28 
Nottinghamshire Fire and Rescue Service ,104201,BlockaboxLimited,BlockaboxLimited,Management & Support Services,5,202406,19/09/2023,P6,9108239,-610.00 ,610.00 ,4534,Carriage and Packaging,2086,Procurement,10.00 
Nottinghamshire Fire and Rescue Service ,102309,Walter Frank & Sons Limited,Walter Frank & Sons Limited,Management & Support Services,1,202406,20/09/2023,P6,9108265,"-2,229.17 ","2,229.17 ",4534,Carriage and Packaging,2086,Procurement,55.00 
Nottinghamshire Fire and Rescue Service ,101312,Lift Components Limited,Lift Components Limited,Management & Support Services,1,202406,20/09/2023,P6,9108294,-312.00 ,312.00 ,4534,Carriage and Packaging,2086,Procurement,15.00 
Nottinghamshire Fire and Rescue Service ,100723,J Hudson & Co (Whistles) Ltd,J Hudson & Co (Whistles) Ltd,Management & Support Services,1,202406,20/02/2023,P6,9108329,-607.78 ,607.78 ,4534,Carriage and Packaging,9999,Default,11.48 
Nottinghamshire Fire and Rescue Service ,100723,J Hudson & Co (Whistles) Ltd,J Hudson & Co (Whistles) Ltd,Management & Support Services,1,202406,26/09/2023,P6,9108360,-667.54 ,667.54 ,4534,Carriage and Packaging,2086,Procurement,11.48 
Nottinghamshire Fire and Rescue Service ,102306,Northern Diver (International) Ltd,Northern Diver (International) Ltd,Management & Support Services,1,202406,26/09/2023,P6,9108365,-678.60 ,678.60 ,4534,Carriage and Packaging,9999,Default,9.50 
Nottinghamshire Fire and Rescue Service ,102191,Anglian Water Services Ltd (Hydrants repairs),Anglian Water Services Ltd (Hydrants repairs),Management & Support Services,1,202406,08/09/2023,P6,9108070,"-1,028.40 ","1,028.40 ",4541,Hydrant Maintenance,2084,Engineering,857.00 
Nottinghamshire Fire and Rescue Service ,104296,Sovereign Lubricants (UK) Ltd,Sovereign Lubricants (UK) Ltd,Management & Support Services,5,202406,19/09/2023,P6,9108337,-968.47 ,968.47 ,4541,Hydrant Maintenance,2084,Engineering,807.06 
Nottinghamshire Fire and Rescue Service ,101844,Nottinghamshire Relate,Nottinghamshire Relate,Management & Support Services,1,202406,31/07/2023,P6,9108022,-800.00 ,800.00 ,4552,Occupational Health Costs,2061,Occupational Health & Fitness,800.00 
Nottinghamshire Fire and Rescue Service ,104291,Suzanne Ross (2thrive Consultancy),Suzanne Ross (2thrive Consultancy),Management & Support Services,5,202406,14/08/2023,P6,9107941,-450.00 ,450.00 ,4554,Consultancy Fees - Non Estates Related,2049,Professional Support,450.00 
Nottinghamshire Fire and Rescue Service ,104291,Suzanne Ross (2thrive Consultancy),Suzanne Ross (2thrive Consultancy),Management & Support Services,5,202406,13/08/2023,P6,9107968,"-2,850.00 ","2,850.00 ",4554,Consultancy Fees - Non Estates Related,2049,Professional Support,"2,850.00 "
Nottinghamshire Fire and Rescue Service ,104291,Suzanne Ross (2thrive Consultancy),Suzanne Ross (2thrive Consultancy),Management & Support Services,5,202406,03/09/2023,P6,9108031,-950.00 ,950.00 ,4554,Consultancy Fees - Non Estates Related,2049,Professional Support,950.00 
Nottinghamshire Fire and Rescue Service ,103275,Zellis,Zellis,Management & Support Services,5,202406,30/08/2023,P6,9108119,-355.95 ,355.95 ,4555,Disclosure Checks,2049,Professional Support,159.96 
Nottinghamshire Fire and Rescue Service ,103275,Zellis,Zellis,Management & Support Services,5,202406,30/08/2023,P6,9108119,-355.95 ,355.95 ,4555,Disclosure Checks,2049,Professional Support,164.00 
Nottinghamshire Fire and Rescue Service ,104299,Barbour EHS Limited,Barbour EHS Limited,"Statutory Inspection, Certification & Enforcement",5,202406,03/04/2023,P6,9108049,"-7,433.10 ","7,433.10 ",4581,Subscriptions,2021,Fire Protection,"6,194.25 "
Nottinghamshire Fire and Rescue Service ,103457,East Midlands Councils,East Midlands Councils,Management & Support Services,5,202406,24/08/2023,P6,9108051,-819.60 ,819.60 ,4581,Subscriptions,2054,Equalities Team,683.00 
Nottinghamshire Fire and Rescue Service ,104304,Say So Ltd,Say So Ltd,Management & Support Services,5,202406,04/09/2023,P6,9108340,"-5,940.00 ","5,940.00 ",4581,Subscriptions,2058,HR Support,"4,950.00 "
Nottinghamshire Fire and Rescue Service ,104290,PATRA inc ACDA Ltd,PATRA inc ACDA Ltd,Management & Support Services,5,202406,18/07/2023,P6,9108059,"-2,500.00 ","2,500.00 ",4583,Marketing and Publicity,2093,Command Suite,"2,500.00 "
Nottinghamshire Fire and Rescue Service ,103108,Radio Faza Limited,Radio Faza Limited,Management & Support Services,5,202406,13/09/2023,P6,9108234,-718.20 ,718.20 ,4583,Marketing and Publicity,2054,Equalities Team,718.20 
Nottinghamshire Fire and Rescue Service ,103860,Debora Link Creative,Debora Link Creative,Management & Support Services,5,202406,22/09/2023,P6,9108282,-400.00 ,400.00 ,4583,Marketing and Publicity,2054,Equalities Team,400.00 
Nottinghamshire Fire and Rescue Service ,104284,Sarah Wilkinson Design,Sarah Wilkinson Design,Management & Support Services,10,202406,22/09/2023,P6,9108333,-585.00 ,585.00 ,4583,Marketing and Publicity,2051,Corporate Communications,585.00 
Nottinghamshire Fire and Rescue Service ,101867,Nottinghamshire Police and Crime Commissioner,Nottinghamshire Police and Crime Commissioner,Management & Support Services,4,202406,16/05/2023,P6,9108369,-500.00 ,500.00 ,4583,Marketing and Publicity,2093,Command Suite,500.00 
Nottinghamshire Fire and Rescue Service ,100290,Lemaitre Ltd,Lemaitre Ltd,Management & Support Services,1,202406,31/07/2023,P6,9108203,"-1,466.88 ","1,466.88 ",4594,Training/ Teaching Equipment,2059,Corporate Training,35.00 
Nottinghamshire Fire and Rescue Service ,100290,Lemaitre Ltd,Lemaitre Ltd,Management & Support Services,1,202406,31/07/2023,P6,9108203,"-1,466.88 ","1,466.88 ",4594,Training/ Teaching Equipment,2059,Corporate Training,"1,187.40 "
Nottinghamshire Fire and Rescue Service ,104276,Motors in Motion Limited,Motors in Motion Limited,Management & Support Services,5,202406,21/09/2023,P6,9108258,-768.00 ,768.00 ,4594,Training/ Teaching Equipment,2059,Corporate Training,640.00 
Nottinghamshire Fire and Rescue Service ,104276,Motors in Motion Limited,Motors in Motion Limited,Operational Responses,5,202406,05/09/2023,P6,9108259,"-2,688.00 ","2,688.00 ",4594,Training/ Teaching Equipment,1012,Retford,640.00 
Nottinghamshire Fire and Rescue Service ,104276,Motors in Motion Limited,Motors in Motion Limited,Management & Support Services,5,202406,05/09/2023,P6,9108259,"-2,688.00 ","2,688.00 ",4594,Training/ Teaching Equipment,2059,Corporate Training,640.00 
Nottinghamshire Fire and Rescue Service ,104276,Motors in Motion Limited,Motors in Motion Limited,Management & Support Services,5,202406,05/09/2023,P6,9108259,"-2,688.00 ","2,688.00 ",4594,Training/ Teaching Equipment,2059,Corporate Training,960.00 
Nottinghamshire Fire and Rescue Service ,102107,Bits At Micks,Bits At Micks,Operational Responses,1,202406,31/07/2023,P6,9108266,"-1,380.00 ","1,380.00 ",4594,Training/ Teaching Equipment,1003,London Road,460.00 
Nottinghamshire Fire and Rescue Service ,102107,Bits At Micks,Bits At Micks,Operational Responses,1,202406,31/07/2023,P6,9108266,"-1,380.00 ","1,380.00 ",4594,Training/ Teaching Equipment,1019,West Bridgford,460.00 
Nottinghamshire Fire and Rescue Service ,102107,Bits At Micks,Bits At Micks,Operational Responses,1,202406,31/07/2023,P6,9108266,"-1,380.00 ","1,380.00 ",4594,Training/ Teaching Equipment,1020,Stockhill,230.00 
Nottinghamshire Fire and Rescue Service ,102107,Bits At Micks,Bits At Micks,Operational Responses,1,202406,31/08/2023,P6,9108268,"-1,932.00 ","1,932.00 ",4594,Training/ Teaching Equipment,1020,Stockhill,230.00 
Nottinghamshire Fire and Rescue Service ,102107,Bits At Micks,Bits At Micks,Operational Responses,1,202406,31/08/2023,P6,9108268,"-1,932.00 ","1,932.00 ",4594,Training/ Teaching Equipment,1029,Highfields Station,460.00 
Nottinghamshire Fire and Rescue Service ,102107,Bits At Micks,Bits At Micks,Management & Support Services,1,202406,31/08/2023,P6,9108268,"-1,932.00 ","1,932.00 ",4594,Training/ Teaching Equipment,2059,Corporate Training,230.00 
Nottinghamshire Fire and Rescue Service ,101796,Ruth Lee Limited,Ruth Lee Limited,Operational Responses,1,202406,28/09/2023,P6,9108372,-820.80 ,820.80 ,4594,Training/ Teaching Equipment,1020,Stockhill,684.00 
Nottinghamshire Fire and Rescue Service ,103849,Vision Support Services Ltd,Vision Support Services Ltd,Management & Support Services,5,202406,31/08/2023,P6,9107992,-434.28 ,434.28 ,4600,Community Safety Delivery Consumables,2068,Prevention,361.90 
Nottinghamshire Fire and Rescue Service ,103849,Vision Support Services Ltd,Vision Support Services Ltd,Operational Responses,5,202406,16/08/2023,P6,9108117,-493.92 ,493.92 ,4600,Community Safety Delivery Consumables,1001,Mansfield,411.60 
Nottinghamshire Fire and Rescue Service ,102107,Bits At Micks,Bits At Micks,Management & Support Services,1,202406,31/08/2023,P6,9108268,"-1,932.00 ","1,932.00 ",4600,Community Safety Delivery Consumables,2068,Prevention,230.00 
Nottinghamshire Fire and Rescue Service ,103849,Vision Support Services Ltd,Vision Support Services Ltd,Operational Responses,5,202406,27/09/2023,P6,9108358,-367.14 ,367.14 ,4600,Community Safety Delivery Consumables,1025,Hucknall,305.95 
Nottinghamshire Fire and Rescue Service ,104064,Redbrick Print Solutions LLP,Redbrick Print Solutions LLP,Management & Support Services,5,202406,28/08/2023,P6,9108071,-540.00 ,540.00 ,4621,Contribution to Partnership Working,2068,Prevention,450.00 
Nottinghamshire Fire and Rescue Service ,104307,Smidr 73 Design,Smidr 73 Design,Management & Support Services,10,202406,28/09/2023,P6,9108370,-450.00 ,450.00 ,4626,Gifts and Donations,2093,Command Suite,450.00 
Nottinghamshire Fire and Rescue Service ,101860,Zurich Municipal (Head Office & Underwriting),Zurich Municipal (Head Office & Underwriting),Management & Support Services,1,202406,31/08/2023,P6,9108074,"-3,190.00 ","3,190.00 ",4893,Insurance - Uninsured Losses/ Excess,2063,Risk Management & Insurance,"3,190.00 "
Nottinghamshire Fire and Rescue Service ,101712,Browne Jacobson LLP,Browne Jacobson LLP,Management & Support Services,1,202406,29/08/2023,P6,9108200,"-6,275.76 ","6,275.76 ",7002,Legal Services,2058,HR Support,"3,142.20 "
Nottinghamshire Fire and Rescue Service ,101712,Browne Jacobson LLP,Browne Jacobson LLP,Management & Support Services,1,202406,29/08/2023,P6,9108200,"-6,275.76 ","6,275.76 ",7002,Legal Services,2087,Estates Department (Previously Premises),"1,914.00 "
Nottinghamshire Fire and Rescue Service ,101788,Link Treasury Services Limited,Link Treasury Services Limited,Management & Support Services,1,202406,07/09/2023,P6,9108063,"-5,250.00 ","5,250.00 ",7500,Treasury Services,2081,Finance,"4,375.00 "
Nottinghamshire Fire and Rescue Service ,102376,Bristol Uniforms Limited,Bristol Uniforms Limited,Management & Support Services,1,202406,29/08/2023,P6,9107949,"-1,005.91 ","1,005.91 ",B314,Stock ,9999,Default,838.26 
Nottinghamshire Fire and Rescue Service ,103094,Draeger Safety UK Limited,Draeger Safety UK Limited,Management & Support Services,5,202406,28/08/2023,P6,9107951,-359.36 ,359.36 ,B314,Stock ,9999,Default,281.97 
Nottinghamshire Fire and Rescue Service ,102508,Collins Nets Ltd,Collins Nets Ltd,Management & Support Services,1,202406,29/08/2023,P6,9107953,"-1,168.80 ","1,168.80 ",B314,Stock ,9999,Default,962.00 
Nottinghamshire Fire and Rescue Service ,103832,Andywrap Eurofilm Ltd,Andywrap Eurofilm Ltd,Management & Support Services,5,202406,12/06/2023,P6,9107965,-763.39 ,763.39 ,B314,Stock ,9999,Default,636.16 
Nottinghamshire Fire and Rescue Service ,101851,Complete Business Solutions Group Ltd,Complete Business Solutions Group Ltd,Management & Support Services,1,202406,01/09/2023,P6,9107996,-735.06 ,735.06 ,B314,Stock ,9999,Default,612.55 
Nottinghamshire Fire and Rescue Service ,104201,BlockaboxLimited,BlockaboxLimited,Management & Support Services,5,202406,04/09/2023,P6,9108002,-310.00 ,310.00 ,B314,Stock ,9999,Default,300.00 
Nottinghamshire Fire and Rescue Service ,102190,Dot Promotional Clothing,Dot Promotional Clothing,Management & Support Services,1,202406,29/08/2023,P6,9108008,-318.60 ,318.60 ,B314,Stock ,9999,Default,265.50 
Nottinghamshire Fire and Rescue Service ,102190,Dot Promotional Clothing,Dot Promotional Clothing,Management & Support Services,1,202406,24/08/2023,P6,9108018,-460.80 ,460.80 ,B314,Stock ,9999,Default,384.00 
Nottinghamshire Fire and Rescue Service ,102376,Bristol Uniforms Limited,Bristol Uniforms Limited,Management & Support Services,1,202406,06/09/2023,P6,9108023,"-3,571.20 ","3,571.20 ",B314,Stock ,9999,Default,"2,976.00 "
Nottinghamshire Fire and Rescue Service ,100357,Eastern Shires Purchasing Organisation,Eastern Shires Purchasing Organisation,Management & Support Services,1,202406,05/09/2023,P6,9108037,-757.86 ,757.86 ,B314,Stock ,9999,Default,631.55 
Nottinghamshire Fire and Rescue Service ,101851,Complete Business Solutions Group Ltd,Complete Business Solutions Group Ltd,Management & Support Services,1,202406,20/07/2023,P6,9108045,"-15,209.40 ","15,209.40 ",B314,Stock ,9999,Default,"12,674.50 "
Nottinghamshire Fire and Rescue Service ,100299,FireAngel Safety Technology Limited,FireAngel Safety Technology Limited,Management & Support Services,1,202406,07/09/2023,P6,9108052,"-14,708.76 ","14,708.76 ",B314,Stock ,9999,Default,"12,257.30 "
Nottinghamshire Fire and Rescue Service ,102431,Jafco Tools,Jafco Tools,Management & Support Services,1,202406,11/09/2023,P6,9108062,-582.43 ,582.43 ,B314,Stock ,9999,Default,485.36 
Nottinghamshire Fire and Rescue Service ,101634,Sigma Security Devices,Sigma Security Devices,Management & Support Services,1,202406,08/09/2023,P6,9108064,-384.00 ,384.00 ,B314,Stock ,9999,Default,300.00 
Nottinghamshire Fire and Rescue Service ,103094,Draeger Safety UK Limited,Draeger Safety UK Limited,Management & Support Services,5,202406,11/09/2023,P6,9108077,-285.89 ,285.89 ,B314,Stock ,9999,Default,238.24 
Nottinghamshire Fire and Rescue Service ,102431,Jafco Tools,Jafco Tools,Management & Support Services,1,202406,15/09/2023,P6,9108098,-550.03 ,550.03 ,B314,Stock ,9999,Default,458.36 
Nottinghamshire Fire and Rescue Service ,102376,Bristol Uniforms Limited,Bristol Uniforms Limited,Management & Support Services,1,202406,13/09/2023,P6,9108099,"-1,728.54 ","1,728.54 ",B314,Stock ,9999,Default,"1,440.45 "
Nottinghamshire Fire and Rescue Service ,100299,FireAngel Safety Technology Limited,FireAngel Safety Technology Limited,Management & Support Services,1,202406,18/09/2023,P6,9108216,-563.40 ,563.40 ,B314,Stock ,9999,Default,469.50 
Nottinghamshire Fire and Rescue Service ,100468,Specialised Canvas Group,Specialised Canvas Group,Management & Support Services,1,202406,19/09/2023,P6,9108218,-663.03 ,663.03 ,B314,Stock ,9999,Default,536.92 
Nottinghamshire Fire and Rescue Service ,100468,Specialised Canvas Group,Specialised Canvas Group,Management & Support Services,1,202406,19/09/2023,P6,9108229,-921.32 ,921.32 ,B314,Stock ,9999,Default,743.48 
Nottinghamshire Fire and Rescue Service ,102376,Bristol Uniforms Limited,Bristol Uniforms Limited,Management & Support Services,1,202406,19/09/2023,P6,9108237,"-1,244.35 ","1,244.35 ",B314,Stock ,9999,Default,"1,036.96 "
Nottinghamshire Fire and Rescue Service ,102376,Bristol Uniforms Limited,Bristol Uniforms Limited,Management & Support Services,1,202406,19/09/2023,P6,9108238,-765.46 ,765.46 ,B314,Stock ,9999,Default,637.88 
Nottinghamshire Fire and Rescue Service ,104201,BlockaboxLimited,BlockaboxLimited,Management & Support Services,5,202406,19/09/2023,P6,9108239,-610.00 ,610.00 ,B314,Stock ,9999,Default,600.00 
Nottinghamshire Fire and Rescue Service ,100357,Eastern Shires Purchasing Organisation,Eastern Shires Purchasing Organisation,Management & Support Services,1,202406,19/09/2023,P6,9108248,-544.74 ,544.74 ,B314,Stock ,9999,Default,453.95 
Nottinghamshire Fire and Rescue Service ,102309,Walter Frank & Sons Limited,Walter Frank & Sons Limited,Management & Support Services,1,202406,20/09/2023,P6,9108265,"-2,229.17 ","2,229.17 ",B314,Stock ,9999,Default,"1,802.64 "
Nottinghamshire Fire and Rescue Service ,101851,Complete Business Solutions Group Ltd,Complete Business Solutions Group Ltd,Management & Support Services,1,202406,01/09/2023,P6,9108273,"-10,178.74 ","10,178.74 ",B314,Stock ,9999,Default,"8,482.28 "
Nottinghamshire Fire and Rescue Service ,102431,Jafco Tools,Jafco Tools,Management & Support Services,1,202406,22/09/2023,P6,9108279,-302.40 ,302.40 ,B314,Stock ,9999,Default,252.00 
Nottinghamshire Fire and Rescue Service ,102012,Midland Ladder Co Ltd,Midland Ladder Co Ltd,Management & Support Services,1,202406,18/09/2023,P6,9108283,-778.56 ,778.56 ,B314,Stock ,9999,Default,648.80 
Nottinghamshire Fire and Rescue Service ,102376,Bristol Uniforms Limited,Bristol Uniforms Limited,Management & Support Services,1,202406,22/09/2023,P6,9108286,-912.42 ,912.42 ,B314,Stock ,9999,Default,760.35 
Nottinghamshire Fire and Rescue Service ,101312,Lift Components Limited,Lift Components Limited,Management & Support Services,1,202406,20/09/2023,P6,9108294,-312.00 ,312.00 ,B314,Stock ,9999,Default,245.00 
Nottinghamshire Fire and Rescue Service ,102190,Dot Promotional Clothing,Dot Promotional Clothing,Management & Support Services,1,202406,26/09/2023,P6,9108300,-390.00 ,390.00 ,B314,Stock ,9999,Default,325.00 
Nottinghamshire Fire and Rescue Service ,103981,Joseph Gleave and Son Limited -Joseph Gleave and Son (Holdings) Limited,Joseph Gleave and Son Limited -Joseph Gleave and Son (Holdings) Limited,Management & Support Services,5,202406,22/09/2023,P6,9108302,-533.71 ,533.71 ,B314,Stock ,9999,Default,444.76 
Nottinghamshire Fire and Rescue Service ,103981,Joseph Gleave and Son Limited -Joseph Gleave and Son (Holdings) Limited,Joseph Gleave and Son Limited -Joseph Gleave and Son (Holdings) Limited,Management & Support Services,5,202406,22/09/2023,P6,9108304,-280.27 ,280.27 ,B314,Stock ,9999,Default,233.56 
Nottinghamshire Fire and Rescue Service ,102376,Bristol Uniforms Limited,Bristol Uniforms Limited,Management & Support Services,1,202406,25/09/2023,P6,9108309,"-4,460.58 ","4,460.58 ",B314,Stock ,9999,Default,"3,717.15 "
Nottinghamshire Fire and Rescue Service ,103981,Joseph Gleave and Son Limited -Joseph Gleave and Son (Holdings) Limited,Joseph Gleave and Son Limited -Joseph Gleave and Son (Holdings) Limited,Management & Support Services,5,202406,07/07/2023,P6,9108313,"-2,214.24 ","2,214.24 ",B314,Stock ,9999,Default,"1,845.20 "
Nottinghamshire Fire and Rescue Service ,102376,Bristol Uniforms Limited,Bristol Uniforms Limited,Management & Support Services,1,202406,26/09/2023,P6,9108328,"-1,244.35 ","1,244.35 ",B314,Stock ,9999,Default,"1,036.96 "
Nottinghamshire Fire and Rescue Service ,100723,J Hudson & Co (Whistles) Ltd,J Hudson & Co (Whistles) Ltd,Management & Support Services,1,202406,20/02/2023,P6,9108329,-607.78 ,607.78 ,B314,Stock ,9999,Default,495.00 
Nottinghamshire Fire and Rescue Service ,100723,J Hudson & Co (Whistles) Ltd,J Hudson & Co (Whistles) Ltd,Management & Support Services,1,202406,26/09/2023,P6,9108360,-667.54 ,667.54 ,B314,Stock ,9999,Default,544.80 
Nottinghamshire Fire and Rescue Service ,102864,William Sugden & sons Limited,William Sugden & sons Limited,Management & Support Services,5,202406,26/09/2023,P6,9108362,"-1,199.40 ","1,199.40 ",B314,Stock ,9999,Default,999.50 
Nottinghamshire Fire and Rescue Service ,102306,Northern Diver (International) Ltd,Northern Diver (International) Ltd,Management & Support Services,1,202406,26/09/2023,P6,9108365,-678.60 ,678.60 ,B314,Stock ,9999,Default,556.00 
Nottinghamshire Fire and Rescue Service ,100357,Eastern Shires Purchasing Organisation,Eastern Shires Purchasing Organisation,Management & Support Services,1,202406,28/09/2023,P6,9108378,-347.40 ,347.40 ,B314,Stock ,9999,Default,289.50 
Nottinghamshire Fire and Rescue Service ,102309,Walter Frank & Sons Limited,Walter Frank & Sons Limited,Management & Support Services,1,202406,08/09/2023,P6,9108042,"-3,363.24 ","3,363.24 ",C001,Vehicle Purchase,4000,Rescue Pump Replacement,41.50 
Nottinghamshire Fire and Rescue Service ,102309,Walter Frank & Sons Limited,Walter Frank & Sons Limited,Management & Support Services,1,202406,08/09/2023,P6,9108042,"-3,363.24 ","3,363.24 ",C001,Vehicle Purchase,4000,Rescue Pump Replacement,"2,761.20 "
Nottinghamshire Fire and Rescue Service ,102309,Walter Frank & Sons Limited,Walter Frank & Sons Limited,Management & Support Services,1,202406,07/09/2023,P6,9108043,"-1,102.22 ","1,102.22 ",C001,Vehicle Purchase,4000,Rescue Pump Replacement,18.52 
Nottinghamshire Fire and Rescue Service ,102309,Walter Frank & Sons Limited,Walter Frank & Sons Limited,Management & Support Services,1,202406,07/09/2023,P6,9108043,"-1,102.22 ","1,102.22 ",C001,Vehicle Purchase,4000,Rescue Pump Replacement,900.00 
Nottinghamshire Fire and Rescue Service ,104219,Toyota (GB) PLC,Toyota (GB) PLC,Management & Support Services,7,202406,18/09/2023,P6,9108271,"-40,846.93 ","40,846.93 ",C001,Vehicle Purchase,4001,Light Vehicle Replacement,"33,214.94 "
Nottinghamshire Fire and Rescue Service ,104219,Toyota (GB) PLC,Toyota (GB) PLC,Management & Support Services,7,202406,20/09/2023,P6,9108272,"-40,846.93 ","40,846.93 ",C001,Vehicle Purchase,4001,Light Vehicle Replacement,"33,214.94 "
Nottinghamshire Fire and Rescue Service ,102127,Transvend Ltd,Transvend Ltd,Management & Support Services,1,202406,20/09/2023,P6,9108308,"-9,419.76 ","9,419.76 ",C001,Vehicle Purchase,4000,Rescue Pump Replacement,"7,849.80 "
Nottinghamshire Fire and Rescue Service ,102127,Transvend Ltd,Transvend Ltd,Management & Support Services,1,202406,20/09/2023,P6,9108321,"-3,862.94 ","3,862.94 ",C001,Vehicle Purchase,4000,Rescue Pump Replacement,"3,219.12 "
Nottinghamshire Fire and Rescue Service ,101867,Nottinghamshire Police and Crime Commissioner,Nottinghamshire Police and Crime Commissioner,Management & Support Services,4,202406,15/06/2023,P6,9108046,"-19,095.85 ","19,095.85 ",C101,Building Works,4102,Strategic New Build Projects,"19,095.85 "
Nottinghamshire Fire and Rescue Service ,104229,YMD Boon Ltd,YMD Boon Ltd,Management & Support Services,5,202406,20/09/2023,P6,9108255,"-13,964.40 ","13,964.40 ",C154,Professional Fees - Design,4100,Fire Station Improvement & Refurbishments,"11,637.00 "
Nottinghamshire Fire and Rescue Service ,101712,Browne Jacobson LLP,Browne Jacobson LLP,Management & Support Services,1,202406,29/08/2023,P6,9108200,"-6,275.76 ","6,275.76 ",C157,Professional Fees - Legal,4102,Strategic New Build Projects,173.60 
Nottinghamshire Fire and Rescue Service ,100467,Kingsfield Computer Products Ltd,Kingsfield Computer Products Ltd,Management & Support Services,1,202406,08/09/2023,P6,9108084,"-20,178.00 ","20,178.00 ",C200,Hardware,4300,ICT Capital Programme,"16,815.00 "
Nottinghamshire Fire and Rescue Service ,100467,Kingsfield Computer Products Ltd,Kingsfield Computer Products Ltd,Management & Support Services,1,202406,07/09/2023,P6,9108090,"-20,178.00 ","20,178.00 ",C200,Hardware,4300,ICT Capital Programme,"16,815.00 "
Nottinghamshire Fire and Rescue Service ,104009,Systel,Systel,Management & Support Services,5,202406,28/07/2023,P6,9108015,"-6,930.00 ","6,930.00 ",C202,Consultancy and Services,4300,ICT Capital Programme,"6,930.00 "
Nottinghamshire Fire and Rescue Service ,103483,Risual Limited,Risual Limited,Management & Support Services,5,202406,18/08/2023,P6,9108089,"-1,140.00 ","1,140.00 ",C202,Consultancy and Services,4300,ICT Capital Programme,950.00 
Nottinghamshire Fire and Rescue Service ,103667,NTA Monitor Ltd,NTA Monitor Ltd,Management & Support Services,5,202406,25/07/2023,P6,9108102,-734.10 ,734.10 ,C202,Consultancy and Services,4300,ICT Capital Programme,611.75 
Nottinghamshire Fire and Rescue Service ,103667,NTA Monitor Ltd,NTA Monitor Ltd,Management & Support Services,5,202406,19/06/2023,P6,9108106,"-7,650.00 ","7,650.00 ",C202,Consultancy and Services,4300,ICT Capital Programme,"6,375.00 "
Nottinghamshire Fire and Rescue Service ,104132,West Yorkshire Pension Fund,West Yorkshire Pension Fund,Management & Support Services,5,202406,27/09/2023,P6,9108316,"-22,415.34 ","22,415.34 ",P204,Annual Allowance - scheme pays,5999,Pension Fund,"10,301.34 "
Nottinghamshire Fire and Rescue Service ,104132,West Yorkshire Pension Fund,West Yorkshire Pension Fund,Management & Support Services,5,202406,27/09/2023,P6,9108316,"-22,415.34 ","22,415.34 ",P204,Annual Allowance - scheme pays,5999,Pension Fund,"12,114.00 "
,***Note:,,,,,,,,,,,,,,,
,"***The report shows the payment in its original form. This means disaggregating many invoices into individual component payments many of which will be less than £250 in their own right. This explains why you will see many of the amounts showing less than £250. They were, however, paid as part of an invoice of £250 or more.

**** The Invoice date is the date issued on the invoice. This date may fall out of the date range for the report. In most cases this is due to the invoice being received  late.",,,,,,,,,,,,,,,